{"text_format":"1","workbook":"xlsx","n_sheets":9,"sheets":["Handleiding","Gegevens sportclub","Categorieën","Ledenadministratie","Sportieve voorbereiding","Competities en tornooien","Extra evenementen","Promotie en communicatie","Lijsten"],"not_rendered":{"charts":0,"images":6,"macros":1,"external_links":0,"defined_names":22,"comments":0,"pivot_tables":0},"unopened":[],"bounds":{"document_bytes":16777216,"sheet_cells":100000,"rows_first":2000,"rows_last":500,"rows_between":2000,"halvings":0,"cell_chars":16384,"cell_head_chars":4096},"cells_cut":0,"cells_raw":0,"read":"whole","date_system":"1904"}

{"sheet":"Handleiding","index":0,"n_rows":69,"n_cols":4,"rows_kept":69,"cut":false,"hidden":false,"merged":[[68,1,68,3],[45,2,45,3],[46,2,46,3],[54,2,54,3],[55,2,55,3],[21,1,21,3],[23,1,23,3],[25,1,25,3],[64,1,64,3],[66,1,66,3],[41,1,41,3],[43,1,43,3],[22,1,22,3],[24,1,24,3],[27,1,27,3],[33,1,33,3],[16,1,16,3],[17,1,17,3],[18,1,18,3],[20,1,20,3],[1,1,1,3],[5,1,5,3],[7,1,7,3],[14,1,14,3],[15,1,15,3],[9,1,9,3],[11,1,11,3],[12,1,12,3]]}
[]
[null,{"$f":"\"REGISTER GEGEVENSVERWERKING\"&\" \"&UPPER(Naam_sportclub)","v":"REGISTER GEGEVENSVERWERKING TTC EGMONT"}]
[]
[]
[]
[null,"HANDLEIDING"]
[]
[null,"Dit document \"Tool 3 Register van gegevensverwerking\" hoort bij de vierde stap in het stappenplan \"GDPR op maat van je sportclub\". Lees zeker  het document \"Handleiding GDPR op maat van je sportclub\" op de website van het Dynamo Project voor meer informatie over de andere stappen."]
[]
[null,"Belangrijk: je mag in dit Excel-bestand geen gebruik maken van de functie  \"knippen\". \nCellen \"kopieren\" en \"plakken\" mag wel binnen eenzelfde kolom. "]
[]
[null,"Je gaat als volgt met dit bestand aan de slag."]
[null,"Als je de melding \"macro's zijn uitgeschakeld\" ziet, klik dan altijd eerst op \"inhoud inschakelen\" alvorens verder te gaan"]
[]
[]
[null,"Tabblad: \"Handleiding\""]
[null,"Lees zeker eerst dit tabblad en gebruik de andere tabbladen in de juiste volgorde zoals hieronder omschreven. Verwijder dit tabblad zeker niet."]
[null,"Tabblad: \"Gegevens sportclub\""]
[null,"Vervolledig het tabblad \"Gegevens sportclub\". In dit tabblad noteer je enkele basisgegevens over je sportclub. Je kan deze informatie overnemen uit \"Tool 1: Opmaak inventaris\". Verwijder dit tabblad zeker niet."]
[]
[null,"Tabblad: \"Categorieën\""]
[null,"Vervolledig vervolgens het tabblad \"Categorieën\". "]
[null,"In dit tabblad zie je 6 soorten categorieën staan, met per categorie een lijst standaard opties. Pas deze opties aan naargelang de specifieke situatie van je sportclub.  Je kan de opties overnemen uit \"Tool 1: Opmaak inventaris\" en \"Tool 2: Toetsing GDPR\". Verwijder dit tabblad zeker niet."]
[]
[null,"Tabbladen \"Verwerkingsactiviteit\""]
[null,"Dit bestand bevat verschillende tabbladen \"Verwerkingsactiviteit\". In elk tabblad kan je gegevens over een andere soort verwerkingsactiviteit invullen. De gegevens die je in een tabblad \"Verwerkingsactiviteit\" invult, worden automatisch gehaald uit het tabblad \"Categorieën\"."]
[]
[null,"Kies eerst bovenaan een tabblad welk soort verwerkingsactiviteit je zal invullen. Plaats je cursor in de grijze cel naast \"verwerkingsactiviteit\", klik op het neerwaarts pijltje en kies een optie."]
[null,"Voorbeeld:"]
[]
[]
[]
[]
[null,"Vul vervolgens voor die verwerkingsactiviteit in de groene kolommen volgende informatie in. De groene kolommen zijn verplichte kolommen in het register, en kan je dan ook niet verwijderen:"]
[null,null,"Verwerkingsdoeleinden:","plaats je cursor in een cel, klik op het neerwaarts pijltje en kies een optie"]
[null,null,"Betrokkenen:","plaats je cursor in een cel, klik op het neerwaarts pijltje en kies een optie"]
[null,null,"Type gegevens:","plaats je cursor in een cel, klik op het neerwaarts pijltje en kies een optie"]
[null,null,"Ontvangers:","plaats je cursor in een cel, klik op het neerwaarts pijltje en kies een optie"]
[null,null,"Bewaringstermijn:","vul in hoe lang je de gegevens bewaart"]
[null,null,"Rechtsgrond:","plaats je cursor in een cel, klik op het neerwaarts pijltje en kies een optie"]
[null,null,"Beveiligingsmaatregelen:","plaats je cursor in een cel, klik op het neerwaarts pijltje en kies een optie"]
[null,"Vul zoveel rijen in tot wanneer je voor die verwerkingsactiviteit alle gegevens hebt ingevuld. Indien gewenst kan je de naam van een ingevuld tabblad nog aanpassen (bijvoorbeeld naar de naam van de verwerkingsactiviteit)."]
[]
[null,"Je kan naast de verplichte gegevens ook nog extra informatie in het register opnemen. Daarvoor dienen de oranje kolommen. Je kan een oranje kolom wel verwijderen of toevoegen."]
[]
[null,null,"Oranje kolom verwijderen."]
[null,null,"Je kan een oranje kolommen verwijderen indien je ze niet gebruikt. Plaats hiervoor je cursor ergens in de oranje kolom die je wil verwijderen en houd vervolgens volgende toetsencombinatie ingedrukt: ctrl + shift + V"]
[]
[]
[]
[]
[]
[]
[]
[null,null,"Oranje kolom toevoegen."]
[null,null,"Je kan extra oranje kolommen toevoegen indien gewenst. Plaats hiervoor je cursor ergens in de laatste oranje kolom en houd vervolgens volgende toetsencombinatie ingedrukt: ctrl + shift + T"]
[]
[]
[]
[]
[]
[]
[]
[]
[null,"Herhaal deze werkwijze in de andere tabbladen \"verwerkingsactiviteit\", tot wanneer je alle verwerkingsactiviteiten binnen je club hebt ingevuld. "]
[]
[null,"Dit document voorziet 5 tabbladen \"verwerkingsactiviteiten\". Mogelijks heb je niet alle tabbladen nodig, in dat geval kan je de overige tabbladen verwijderen. Heb je meer dan 5 tabbladen nodig? Kopieer dan een tabblad zo vaak als nodig."]
[]
[null,"Veel succes!"]

{"sheet":"Gegevens sportclub","index":1,"n_rows":28,"n_cols":3,"rows_kept":28,"cut":false,"hidden":false,"merged":[[5,1,5,2],[1,1,1,2]]}
[]
[null,{"$f":"\"REGISTER GEGEVENSVERWERKING\"&\" \"&UPPER(Naam_sportclub)","v":"REGISTER GEGEVENSVERWERKING TTC EGMONT"}]
[]
[]
[]
[null,"GEGEVENS SPORTCLUB"]
[]
[null,"Naam sportclub:","TTC Egmont"]
[null,"Adres sportclub: ","Zwembadstraat 7 - 9620 Zottegem"]
[null,"Rechtsvorm sportclub: ","Feitelijke vereniging"]
[null,"Website sportclub:","www.ttcegmont.be"]
[null,"De sportclub is lid van de federatie: ","Vlaamse Tafeltennisliga VZW"]
[]
[null,"Contactpersoon sportclub"]
[null,"Naam:","Ghijs Bart"]
[null,"Telefoonnummer: ","0486/614512"]
[null,"E-mailadres: ","bart@ttcegmont.be"]
[]
[null,"Verantwoordelijke voor de gegevensverwerking in sportclub"]
[null,"Naam:","Ghijs Bart"]
[null,"Telefoonnummer: ","0486/614512"]
[null,"E-mailadres: ","www.ttcegmont.be"]
[null,"Sinds:","2018-05-25"]
[]
[null,"Verantwoordelijke voor de gegevensverwerking bij de federatie (optioneel)"]
[null,"Naam:","Lamproye Dirk"]
[null,"Telefoonnummer: ","02 527 53 72"]
[null,"E-mailadres: ","info@vttl.be"]

{"sheet":"Categorieën","index":2,"n_rows":177,"n_cols":2,"rows_kept":177,"cut":false,"hidden":false,"merged":[]}
[]
[null,{"$f":"\"REGISTER GEGEVENSVERWERKING\"&\" \"&UPPER(Naam_sportclub)","v":"REGISTER GEGEVENSVERWERKING TTC EGMONT"}]
[]
[null,{"$f":"IF(ISBLANK(#REF!)=TRUE,\" \",#REF!)","v":{"$error":"#REF!"}}]
[]
[null,"CATEGORIEËN"]
[]
[null,"Welke categorieën van persoonsgegevens houdt je sportclub bij?"]
[null,"beeldmateriaal: (digitale) foto's, filmpjes"]
[null,"persoonlijke gegevens: lidnummer"]
[null,"persoonlijke gegevens: naam"]
[null,"persoonlijke gegevens: adres"]
[null,"persoonlijke gegevens: telefoonnummer"]
[null,"persoonlijke gegevens: e-mailadres"]
[null,"persoonlijke gegevens: nationaliteit"]
[null,"persoonlijke gegevens: leeftijd, geboortedatum, geboorteplaats"]
[null,"persoonlijke gegevens: naam, adres"]
[null,"persoonlijke gegevens: naam, e-mailadres"]
[null,"persoonlijke gegevens: naam, telefoonnummer"]
[null,"persoonlijke gegevens: naam, adres, telefoonnummer"]
[null,"persoonlijke gegevens: naam, telefoonnummer, e-mailadres"]
[null,"persoonlijke gegevens: naam, adres, telefoonnummer, leeftijd, geboortedatum, geslacht"]
[null,"persoonlijke gegevens: gevolgde opleidingen, resultaten opleidingen, attesten van deelname"]
[null,"gevoelige gegevens: gegevens betreffende lichamelijke of psychische gezondheid (medische fiches): medisch dossier, medisch verslag, diagnose-informatie, behandeling, dieet, allergieën,handicap, andere bijzondere vereisten i.v.m. gezondheid "]
[null,"competitiegegevens federatie: aansluitingsnummer, klassement"]
[null,"competitiegegevens federatie: wedstrijdgegevens en -resultaten"]
[null,"gegevens van derden: naam, telefoonnummer, e-mailadres van de ouders"]
[]
[]
[]
[]
[]
[]
[]
[]
[]
[]
[]
[]
[null,"Van wie houdt je sportclub persoonsgegevens bij?"]
[null,"leden"]
[null,"ouders van leden"]
[null,"deelnemers (leden)"]
[null,"deelnemers (niet-leden)"]
[null,"bestuurders"]
[null,"trainers (intern)"]
[null,"trainers (extern)"]
[null,"personeel"]
[null,"vrijwilligers"]
[null,"sympathisanten"]
[null,"sponsors"]
[null,"contacten bij andere clubs"]
[null,"contacten bij de federatie"]
[null,"contacten bij de (lokale) overheden"]
[]
[]
[]
[]
[]
[]
[]
[]
[]
[]
[]
[]
[]
[]
[]
[]
[]
[null,"Welke verwerkingsactiviteiten voert je sportclub uit?"]
[null,"ledenadministratie"]
[null,"sportieve voorbereiding (o.a. trainingen, stages)"]
[null,"deelnemen aan competities en tornooien"]
[null,"organiseren van niet-sportgerelateerde clubevenementen"]
[null,"promotie, PR en communicatie"]
[]
[]
[]
[]
[]
[]
[]
[]
[]
[]
[]
[]
[]
[]
[]
[]
[]
[]
[]
[]
[]
[]
[]
[]
[]
[]
[null,"Aan welke organisaties geeft je sportclub persoonsgegevens door?"]
[null,"leden"]
[null,"federatie"]
[null,"overheid: Sport Vlaanderen"]
[null,"overheid: Stad Zottegem (subsidiedossier)"]
[null,"verzekeraar (via Federatie)"]
[null,"publiek (intern in de club via competitieboekje)"]
[null,"publiek (foto's via website en facebookpagina)"]
[]
[]
[]
[]
[]
[]
[]
[]
[]
[]
[]
[]
[]
[]
[]
[]
[]
[]
[]
[]
[]
[]
[]
[]
[null,"Waarom houdt je sportclub persoonsgegevens bij?"]
[null,"clubadministratie: verwerking gegevens i.f.v. lidmaatschap"]
[null,"clubadministratie: verwerking gegevens i.f.v. verzekering"]
[null,"clubadministratie: verwerking gegevens i.f.v. begeleiding van leden (verlenen van psychische of materiële ondersteuning)"]
[null,"clubadministratie: verwerking gegevens i.f.v. vorming van leden"]
[null,"clubadministratie: leden indelen in categoriën en groepen"]
[null,"clubadministratie: uitwisseling van gegevens van trainers"]
[null,"clubadministratie: onderlinge uitwisseling van ledengegevens"]
[null,"communicatie met leden (versturen van nieuwsbrieven, mails…)"]
[null,"communicatie met deelnemers aan organisaties"]
[null,"administratie deelnemers: verwerking gegevens i.f.v. deelname"]
[null,"administratie deelnemers: verwerking gegevens i.f.v. verzekering"]
[null,"administratie deelnemers: verwerking gegevens i.f.v. begeleiding van deelnemers (verlenen van psychische of materiële ondersteuning)"]
[null,"administratie deelnemers: deelnemers indelen in categoriën en groepen"]
[null,"sportieve administratie: aansluiting federatie"]
[null,"sportieve administratie: deelname aan competitie federatie"]
[null,"sportieve administratie: doorgeven competitieresultaten federatie"]
[null,"sportieve administratie: deelname aan tornooien federatie"]
[null,"sportieve administratie: doorgeven tornooiresultaten federatie"]
[null,"sportieve administratie: inschrijven stages (met overnachting)"]
[null,"sportieve administratie: inschrijven stages (zonder overnachting)"]
[null,"sportieve administratie: organisatie recreatief sportevenement"]
[null,"beheren social media - sfeerfoto's"]
[null,"beheren social media - gerichte foto's"]
[null,"beheren clubwebsite"]
[]
[]
[]
[]
[]
[]
[]
[null,"Welke beveiligingsmaatregelen treft je sportclub mbt persoonsgegevens?"]
[null,"standaardmaatregelen"]
[null,"organisatorische maatregel: enkel de secretaris kan aan de gegevens"]
[null,"organisatorische maatregel: enkel bestuurleden met autorisatie kunnen aan de gegevens"]
[null,"organisatorische maatregel: enkel wie ingelogd is op de website kan aan de gegevens"]
[null,"organisatorische maatregel: materiaal enkel op eigen site"]
[null,"organisatorische maatregel: medische fiches worden bijgehouden in gesloten koffer"]
[null,"technische maatregel: encryptie"]
[null,"technische maatregel: firewall"]
[null,"technische maatregelen: privacyinstellingen"]

{"sheet":"Ledenadministratie","index":3,"n_rows":14,"n_cols":13,"rows_kept":14,"cut":false,"hidden":false,"merged":[[1,1,1,7],[5,3,5,4]]}
[]
[null,{"$f":"\"REGISTER GEGEVENSVERWERKING\"&\" \"&UPPER(Naam_sportclub)","v":"REGISTER GEGEVENSVERWERKING TTC EGMONT"}]
[]
[]
[]
[null,null,"Verwerkingsactiviteit:","ledenadministratie"]
[]
[null,"Verwerkingsdoeleinden","Betrokkenen","Type gegevens","Ontvangers","Bewaringstermijn","Rechtsgrond","Beveiligingsmaatregelen ","nieuwe kolom","nieuwe kolom",null,null,"nieuwe kolom"]
[null,"Waarom worden de gegevens verwerkt?","Van wie zijn de gegevens?","Welk type gegevens zijn het?","Aan wie zullen de gegevens worden verstrekt?","Hoelang worden de gegevens bewaard?","Wat is de wettelijke grondslag voor de verwerking?","Welke maatregelen worden genomen om de gegevens te beveiligen? ","nieuwe vrij in te vullen kolom","nieuwe vrij in te vullen kolom",null,null,"nieuwe vrij in te vullen kolom"]
[null,"clubadministratie: verwerking gegevens i.f.v. lidmaatschap","leden","persoonlijke gegevens: naam, adres, telefoonnummer","leden",2,"toestemming","organisatorische maatregel: enkel wie ingelogd is op de website kan aan de gegevens"]
[null,null,"leden","persoonlijke gegevens: e-mailadres","leden",2,"toestemming","organisatorische maatregel: enkel wie ingelogd is op de website kan aan de gegevens"]
[null,null,"leden","persoonlijke gegevens: lidnummer","leden",2,"toestemming","organisatorische maatregel: enkel wie ingelogd is op de website kan aan de gegevens"]
[null,null,"leden","beeldmateriaal: (digitale) foto's, filmpjes","leden",2,"toestemming","organisatorische maatregel: enkel wie ingelogd is op de website kan aan de gegevens"]
[null,null,"leden","persoonlijke gegevens: naam, adres, telefoonnummer, leeftijd, geboortedatum, geslacht","overheid: Stad Zottegem (subsidiedossier)",null,"gerechtvaardigd belang "]

{"sheet":"Sportieve voorbereiding","index":4,"n_rows":26,"n_cols":13,"rows_kept":26,"cut":false,"hidden":false,"merged":[[1,1,1,7],[5,3,5,4]]}
[]
[null,{"$f":"\"REGISTER GEGEVENSVERWERKING\"&\" \"&UPPER(Naam_sportclub)","v":"REGISTER GEGEVENSVERWERKING TTC EGMONT"}]
[]
[]
[]
[null,null,"Verwerkingsactiviteit:","sportieve voorbereiding (o.a. trainingen, stages)"]
[]
[null,"Verwerkingsdoeleinden","Betrokkenen","Type gegevens","Ontvangers","Bewaringstermijn","Rechtsgrond","Beveiligingsmaatregelen ","nieuwe kolom","nieuwe kolom",null,null,"nieuwe kolom"]
[null,"Waarom worden de gegevens verwerkt?","Van wie zijn de gegevens?","Welk type gegevens zijn het?","Aan wie zullen de gegevens worden verstrekt?","Hoelang worden de gegevens bewaard?","Wat is de wettelijke grondslag voor de verwerking?","Welke maatregelen worden genomen om de gegevens te beveiligen? ","nieuwe vrij in te vullen kolom","nieuwe vrij in te vullen kolom",null,null,"nieuwe vrij in te vullen kolom"]
[null,"clubadministratie: onderlinge uitwisseling van ledengegevens","leden","persoonlijke gegevens: naam, adres, telefoonnummer","niemand (gegevens worden niet doorgegeven)","2 jaar","gerechtvaardigd belang ","standaardmaatregelen"]
[null,null,null,"persoonlijke gegevens: e-mailadres","niemand (gegevens worden niet doorgegeven)","2 jaar","gerechtvaardigd belang ","standaardmaatregelen"]
[null,null,null,"competitiegegevens federatie: aansluitingsnummer, klassement","niemand (gegevens worden niet doorgegeven)","2 jaar","gerechtvaardigd belang ","standaardmaatregelen"]
[null,"clubadministratie: leden indelen in categoriën en groepen","leden","persoonlijke gegevens: naam, adres","niemand (gegevens worden niet doorgegeven)","1 jaar","gerechtvaardigd belang ","standaardmaatregelen"]
[null,null,null,"competitiegegevens federatie: aansluitingsnummer, klassement","niemand (gegevens worden niet doorgegeven)","1 jaar","gerechtvaardigd belang ","standaardmaatregelen"]
[null,"clubadministratie: uitwisseling van gegevens van trainers","trainers (intern)","persoonlijke gegevens: naam, adres","federatie","1 jaar","gerechtvaardigd belang ","standaardmaatregelen"]
[null,null,null,"competitiegegevens federatie: aansluitingsnummer, klassement","federatie","1 jaar","gerechtvaardigd belang ","standaardmaatregelen"]
[]
[null,"sportieve administratie: inschrijven stages (zonder overnachting)","deelnemers (leden)","persoonlijke gegevens: naam, adres, telefoonnummer","niemand (gegevens worden niet doorgegeven)","tot na afloop activiteit","contractuele grond","standaardmaatregelen"]
[null,null,null,"persoonlijke gegevens: e-mailadres","niemand (gegevens worden niet doorgegeven)","tot na afloop activiteit","contractuele grond","standaardmaatregelen"]
[null,null,null,"competitiegegevens federatie: aansluitingsnummer, klassement","niemand (gegevens worden niet doorgegeven)","tot na afloop activiteit","contractuele grond","standaardmaatregelen"]
[null,null,null,"gegevens van derden: naam, telefoonnummer, e-mailadres van de ouders","niemand (gegevens worden niet doorgegeven)","tot na afloop activiteit","contractuele grond","standaardmaatregelen"]
[null,"sportieve administratie: inschrijven stages (met overnachting)","deelnemers (leden)","persoonlijke gegevens: naam, adres, telefoonnummer","niemand (gegevens worden niet doorgegeven)","tot na afloop activiteit","contractuele grond","standaardmaatregelen"]
[null,null,null,"persoonlijke gegevens: e-mailadres","niemand (gegevens worden niet doorgegeven)","tot na afloop activiteit","contractuele grond","standaardmaatregelen"]
[null,null,null,"persoonlijke gegevens: naam, adres, telefoonnummer, leeftijd, geboortedatum, geboorteplaats, geslacht","partnerorganisatie","tot na afloop activiteit","contractuele grond","standaardmaatregelen"]
[null,null,null,"competitiegegevens federatie: aansluitingsnummer, klassement","niemand (gegevens worden niet doorgegeven)","tot na afloop activiteit","contractuele grond","standaardmaatregelen"]
[null,null,null,"gegevens van derden: naam, telefoonnummer, e-mailadres van de ouders","niemand (gegevens worden niet doorgegeven)","tot na afloop activiteit","contractuele grond","standaardmaatregelen"]

{"sheet":"Competities en tornooien","index":5,"n_rows":28,"n_cols":13,"rows_kept":28,"cut":false,"hidden":false,"merged":[[1,1,1,7],[5,3,5,4]]}
[]
[null,{"$f":"\"REGISTER GEGEVENSVERWERKING\"&\" \"&UPPER(Naam_sportclub)","v":"REGISTER GEGEVENSVERWERKING TTC EGMONT"}]
[]
[]
[]
[null,null,"Verwerkingsactiviteit:","deelnemen aan competities en tornooien"]
[]
[null,"Verwerkingsdoeleinden","Betrokkenen","Type gegevens","Ontvangers","Bewaringstermijn","Rechtsgrond","Beveiligingsmaatregelen ","nieuwe kolom","nieuwe kolom",null,null,"nieuwe kolom"]
[null,"Waarom worden de gegevens verwerkt?","Van wie zijn de gegevens?","Welk type gegevens zijn het?","Aan wie zullen de gegevens worden verstrekt?","Hoelang worden de gegevens bewaard?","Wat is de wettelijke grondslag voor de verwerking?","Welke maatregelen worden genomen om de gegevens te beveiligen? ","nieuwe vrij in te vullen kolom","nieuwe vrij in te vullen kolom",null,null,"nieuwe vrij in te vullen kolom"]
[null,"sportieve administratie: aansluiting federatie","deelnemers (leden)","persoonlijke gegevens: naam, adres, telefoonnummer, leeftijd, geboortedatum, geslacht","federatie","10 jaar","gerechtvaardigd belang ","standaardmaatregelen"]
[null,null,null,"persoonlijke gegevens: e-mailadres","federatie","10 jaar","gerechtvaardigd belang ","standaardmaatregelen"]
[null,null,null,"persoonlijke gegevens: nationaliteit","federatie","10 jaar","gerechtvaardigd belang ","standaardmaatregelen"]
[]
[null,"sportieve administratie: deelname aan competitie federatie","deelnemers (leden)","persoonlijke gegevens: naam","federatie","10 jaar","gerechtvaardigd belang ","standaardmaatregelen"]
[null,null,null,"competitiegegevens federatie: aansluitingsnummer, klassement","federatie","10 jaar","gerechtvaardigd belang ","standaardmaatregelen"]
[null,"sportieve administratie: doorgeven competitieresultaten federatie","deelnemers (leden)","persoonlijke gegevens: naam","federatie","10 jaar","gerechtvaardigd belang ","standaardmaatregelen"]
[null,null,null,"competitiegegevens federatie: aansluitingsnummer, klassement","federatie","10 jaar","gerechtvaardigd belang ","standaardmaatregelen"]
[null,null,null,"competitiegegevens federatie: wedstrijdgegevens en -resultaten","federatie","10 jaar","gerechtvaardigd belang ","standaardmaatregelen"]
[null,"sportieve administratie: deelname aan tornooien federatie","deelnemers (leden)","persoonlijke gegevens: naam","federatie","10 jaar","gerechtvaardigd belang ","standaardmaatregelen"]
[null,null,null,"competitiegegevens federatie: aansluitingsnummer, klassement","federatie","10 jaar","gerechtvaardigd belang ","standaardmaatregelen"]
[null,"sportieve administratie: doorgeven tornooiresultaten federatie","deelnemers (leden)","persoonlijke gegevens: naam","federatie","10 jaar","gerechtvaardigd belang ","standaardmaatregelen"]
[null,null,null,"competitiegegevens federatie: aansluitingsnummer, klassement","federatie","10 jaar","gerechtvaardigd belang ","standaardmaatregelen"]
[null,null,null,"competitiegegevens federatie: wedstrijdgegevens en -resultaten","federatie","10 jaar","gerechtvaardigd belang ","standaardmaatregelen"]
[null,"sportieve administratie: organisatie recreatief sportevenement","deelnemers (leden)","persoonlijke gegevens: naam, telefoonnummer, e-mailadres","niemand (gegevens worden niet doorgegeven)","1 jaar","contractuele grond","standaardmaatregelen"]
[null,null,null,"competitiegegevens federatie: aansluitingsnummer, klassement","niemand (gegevens worden niet doorgegeven)","1 jaar","contractuele grond","standaardmaatregelen"]
[null,null,"deelnemers (niet-leden)","persoonlijke gegevens: naam, adres, telefoonnummer","niemand (gegevens worden niet doorgegeven)","1 jaar","contractuele grond","standaardmaatregelen"]
[null,null,null,"persoonlijke gegevens: e-mailadres","niemand (gegevens worden niet doorgegeven)","1 jaar","contractuele grond","standaardmaatregelen"]
[null,null,null,"competitiegegevens federatie: aansluitingsnummer, klassement","niemand (gegevens worden niet doorgegeven)","1 jaar","contractuele grond","standaardmaatregelen"]

{"sheet":"Extra evenementen","index":6,"n_rows":21,"n_cols":13,"rows_kept":21,"cut":false,"hidden":false,"merged":[[1,1,1,7],[5,3,5,4]]}
[]
[null,{"$f":"\"REGISTER GEGEVENSVERWERKING\"&\" \"&UPPER(Naam_sportclub)","v":"REGISTER GEGEVENSVERWERKING TTC EGMONT"}]
[]
[]
[]
[null,null,"Verwerkingsactiviteit:","organiseren van niet-sportgerelateerde clubevenementen"]
[]
[null,"Verwerkingsdoeleinden","Betrokkenen","Type gegevens","Ontvangers","Bewaringstermijn","Rechtsgrond","Beveiligingsmaatregelen ","Soort evenement","nieuwe kolom",null,null,"nieuwe kolom"]
[null,"Waarom worden de gegevens verwerkt?","Van wie zijn de gegevens?","Welk type gegevens zijn het?","Aan wie zullen de gegevens worden verstrekt?","Hoelang worden de gegevens bewaard?","Wat is de wettelijke grondslag voor de verwerking?","Welke maatregelen worden genomen om de gegevens te beveiligen? ","Extra informatie over het evenement","nieuwe vrij in te vullen kolom",null,null,"nieuwe vrij in te vullen kolom"]
[null,"administratie deelnemers: verwerking gegevens i.f.v. deelname","deelnemers (leden)","persoonlijke gegevens: naam, telefoonnummer, e-mailadres","niemand (gegevens worden niet doorgegeven)","2 jaar","contractuele grond","standaardmaatregelen","Eetfestijn"]
[null,null,null,"gevoelige gegevens: gegevens betreffende lichamelijke of psychische gezondheid (medische fiches): medisch dossier, medisch verslag, diagnose-informatie, behandeling, dieet, allergieën,handicap, andere bijzondere vereisten i.v.m. gezondheid ","niemand (gegevens worden niet doorgegeven)","2 jaar","contractuele grond","standaardmaatregelen"]
[null,null,"deelnemers (niet-leden)","persoonlijke gegevens: naam, telefoonnummer, e-mailadres","niemand (gegevens worden niet doorgegeven)","2 jaar","contractuele grond","standaardmaatregelen"]
[null,null,null,"gevoelige gegevens: gegevens betreffende lichamelijke of psychische gezondheid (medische fiches): medisch dossier, medisch verslag, diagnose-informatie, behandeling, dieet, allergieën,handicap, andere bijzondere vereisten i.v.m. gezondheid ","niemand (gegevens worden niet doorgegeven)","2 jaar","contractuele grond","standaardmaatregelen"]
[null,"communicatie met deelnemers aan organisaties","deelnemers (leden)","persoonlijke gegevens: naam, telefoonnummer, e-mailadres","niemand (gegevens worden niet doorgegeven)","2 jaar","contractuele grond","standaardmaatregelen"]
[null,null,"deelnemers (leden)","persoonlijke gegevens: naam, telefoonnummer, e-mailadres","niemand (gegevens worden niet doorgegeven)","2 jaar","contractuele grond","standaardmaatregelen"]
[null,null,"deelnemers (niet-leden)","persoonlijke gegevens: naam, telefoonnummer, e-mailadres","niemand (gegevens worden niet doorgegeven)","2 jaar","contractuele grond","standaardmaatregelen"]
[null,null,"deelnemers (niet-leden)","persoonlijke gegevens: naam, telefoonnummer, e-mailadres","niemand (gegevens worden niet doorgegeven)","2 jaar","contractuele grond","standaardmaatregelen"]
[null,"administratie deelnemers: verwerking gegevens i.f.v. deelname","deelnemers (leden)","persoonlijke gegevens: naam, telefoonnummer, e-mailadres","niemand (gegevens worden niet doorgegeven)","2 jaar","contractuele grond","standaardmaatregelen","Quiz"]
[null,null,"deelnemers (niet-leden)","persoonlijke gegevens: naam, telefoonnummer, e-mailadres","niemand (gegevens worden niet doorgegeven)","2 jaar","contractuele grond","standaardmaatregelen"]
[null,null,"deelnemers (leden)","persoonlijke gegevens: naam","niemand (gegevens worden niet doorgegeven)","2 jaar","contractuele grond","standaardmaatregelen"]
[null,null,"deelnemers (niet-leden)","persoonlijke gegevens: naam","niemand (gegevens worden niet doorgegeven)","2 jaar","contractuele grond","standaardmaatregelen"]

{"sheet":"Promotie en communicatie","index":7,"n_rows":25,"n_cols":13,"rows_kept":25,"cut":false,"hidden":false,"merged":[[1,1,1,7],[5,3,5,4]]}
[]
[null,{"$f":"\"REGISTER GEGEVENSVERWERKING\"&\" \"&UPPER(Naam_sportclub)","v":"REGISTER GEGEVENSVERWERKING TTC EGMONT"}]
[]
[]
[]
[null,null,"Verwerkingsactiviteit:","promotie, PR en communicatie"]
[]
[null,"Verwerkingsdoeleinden","Betrokkenen","Type gegevens","Ontvangers","Bewaringstermijn","Rechtsgrond","Beveiligingsmaatregelen ","nieuwe kolom","nieuwe kolom",null,null,"nieuwe kolom"]
[null,"Waarom worden de gegevens verwerkt?","Van wie zijn de gegevens?","Welk type gegevens zijn het?","Aan wie zullen de gegevens worden verstrekt?","Hoelang worden de gegevens bewaard?","Wat is de wettelijke grondslag voor de verwerking?","Welke maatregelen worden genomen om de gegevens te beveiligen? ","nieuwe vrij in te vullen kolom","nieuwe vrij in te vullen kolom",null,null,"nieuwe vrij in te vullen kolom"]
[null,"beheren social media - sfeerfoto's","leden","beeldmateriaal: (digitale) foto's, filmpjes","publiek (publicatie op internet/facebook)","10 jaar","gerechtvaardigd belang ","technische maatregelen : privacyinstellingen"]
[null,null,"ouders van leden","beeldmateriaal: (digitale) foto's, filmpjes","publiek (publicatie op internet/facebook)","10 jaar","gerechtvaardigd belang ","technische maatregelen : privacyinstellingen"]
[null,null,"deelnemers (leden)","beeldmateriaal: (digitale) foto's, filmpjes","publiek (publicatie op internet/facebook)","10 jaar","gerechtvaardigd belang ","technische maatregelen : privacyinstellingen"]
[null,null,"deelnemers (niet-leden)","beeldmateriaal: (digitale) foto's, filmpjes","publiek (publicatie op internet/facebook)","10 jaar","gerechtvaardigd belang ","technische maatregelen : privacyinstellingen"]
[null,null,"bestuurders","beeldmateriaal: (digitale) foto's, filmpjes","publiek (publicatie op internet/facebook)","10 jaar","gerechtvaardigd belang ","technische maatregelen : privacyinstellingen"]
[null,null,"contacten bij andere clubs","beeldmateriaal: (digitale) foto's, filmpjes","publiek (publicatie op internet/facebook)","10 jaar","gerechtvaardigd belang ","technische maatregelen : privacyinstellingen"]
[null,null,"contacten bij de (lokale) overheden","beeldmateriaal: (digitale) foto's, filmpjes","publiek (publicatie op internet/facebook)","10 jaar","gerechtvaardigd belang ","technische maatregelen : privacyinstellingen"]
[null,"beheren social media - gerichte foto's","leden","beeldmateriaal: (digitale) foto's, filmpjes","publiek (publicatie op internet/facebook)","10 jaar","toestemming","technische maatregelen : privacyinstellingen"]
[null,null,"ouders van leden","beeldmateriaal: (digitale) foto's, filmpjes","publiek (publicatie op internet/facebook)","10 jaar","toestemming","technische maatregelen : privacyinstellingen"]
[null,null,"deelnemers (leden)","beeldmateriaal: (digitale) foto's, filmpjes","publiek (publicatie op internet/facebook)","10 jaar","toestemming","technische maatregelen : privacyinstellingen"]
[null,null,"deelnemers (niet-leden)","beeldmateriaal: (digitale) foto's, filmpjes","publiek (publicatie op internet/facebook)","10 jaar","toestemming","technische maatregelen : privacyinstellingen"]
[null,null,"bestuurders","beeldmateriaal: (digitale) foto's, filmpjes","publiek (publicatie op internet/facebook)","10 jaar","toestemming","technische maatregelen : privacyinstellingen"]
[null,null,"contacten bij andere clubs","beeldmateriaal: (digitale) foto's, filmpjes","publiek (publicatie op internet/facebook)","10 jaar","toestemming","technische maatregelen : privacyinstellingen"]
[null,null,"contacten bij de (lokale) overheden","beeldmateriaal: (digitale) foto's, filmpjes","publiek (publicatie op internet/facebook)","10 jaar","toestemming","technische maatregelen : privacyinstellingen"]
[null,"beheren clubwebsite","bestuurders","persoonlijke gegevens: naam, e-mailadres","publiek (publicatie op internet/facebook)","tot einde mandaat","gerechtvaardigd belang ","organisatorische maatregel: materiaal enkel op eigen site"]
[null,null,null,"persoonlijke gegevens: telefoonnummer","publiek (publicatie op internet/facebook)","tot einde mandaat","toestemming","organisatorische maatregel: materiaal enkel op eigen site"]

{"sheet":"Lijsten","index":8,"n_rows":31,"n_cols":44,"rows_kept":31,"cut":false,"hidden":true,"merged":[[0,38,0,43],[0,10,0,15],[0,17,0,22],[0,3,0,8],[0,24,0,29],[0,31,0,36]]}
[null,"wettelijke grond ",null,"Persoonsgegevens",null,null,null,null,null,null,"Betrokkenen",null,null,null,null,null,null,"Verwerkingsactiviteiten",null,null,null,null,null,null,"Derden",null,null,null,null,null,null,"Doeleinden",null,null,null,null,null,null,"Beveiligingsmaatregelen"]
[null,"algemeen belang",null,1,{"$f":"IF(ISBLANK(Categorieën!B9)=TRUE,\" \",Categorieën!B9)","v":"beeldmateriaal: (digitale) foto's, filmpjes"},{"$f":"SUM(IF(ISBLANK(Categorieën!B9)=TRUE,100,IF(Categorieën!B9>Categorieën!$B$9:$B$38,1,0)))+ROW()/100","v":11.02},{"$f":"SMALL($F$2:$F$31,ROW()-1)","v":11.02},{"$f":"SUM(IF(G2=$F$2:$F$31,$D$2:$D$31,0))","v":1},{"$f":"IF(ISBLANK(VLOOKUP($H2,$D$2:$E$31,2))=TRUE,\"\",VLOOKUP($H2,$D$2:$E$31,2))","v":"beeldmateriaal: (digitale) foto's, filmpjes"},null,1,{"$f":"IF(ISBLANK(Categorieën!B41)=TRUE,\" \",Categorieën!B41)","v":"leden"},{"$f":"SUM(IF(ISBLANK(Categorieën!B41)=TRUE,100,IF(Categorieën!B41>Categorieën!$B$41:$B$70,1,0)))+ROW()/100","v":22.02},{"$f":"SMALL($M$2:$M$31,ROW()-1)","v":16.059999999999999},{"$f":"SUM(IF(N2=$M$2:$M$31,$K$2:$K$31,0))","v":5},{"$f":"IF(ISBLANK(VLOOKUP($O2,$K$2:$L$31,2))=TRUE,\"\",VLOOKUP($O2,$K$2:$L$31,2))","v":"bestuurders"},null,1,{"$f":"IF(ISBLANK(Categorieën!B73)=TRUE,\" \",Categorieën!B73)","v":"ledenadministratie"},{"$f":"SUM(IF(ISBLANK(Categorieën!B73)=TRUE,100,IF(Categorieën!B73>Categorieën!$B$73:$B$102,1,0)))+ROW()/100","v":26.02},{"$f":"SMALL($T$2:$T$31,ROW()-1)","v":25.04},{"$f":"SUM(IF(U2=$T$2:$T$31,$R$2:$R$31,0))","v":3},{"$f":"IF(ISBLANK(VLOOKUP($V2,$R$2:$S$31,2))=TRUE,\"\",VLOOKUP($V2,$R$2:$S$31,2))","v":"deelnemen aan competities en tornooien"},null,1,{"$f":"IF(ISBLANK(Categorieën!B105)=TRUE,\" \",Categorieën!B105)","v":"leden"},{"$f":"SUM(IF(ISBLANK(Categorieën!B105)=TRUE,100,IF(Categorieën!B105>Categorieën!$B$105:$B$134,1,0)))+ROW()/100","v":24.02},{"$f":"SMALL($AA$2:$AA$31,ROW()-1)","v":23.03},{"$f":"SUM(IF(AB2=$AA$2:$AA$31,$Y$2:$Y$31,0))","v":2},{"$f":"IF(ISBLANK(VLOOKUP($AC2,$Y$2:$Z$31,2))=TRUE,\"\",VLOOKUP($AC2,$Y$2:$Z$31,2))","v":"federatie"},null,1,{"$f":"IF(ISBLANK(Categorieën!B137)=TRUE,\" \",Categorieën!B137)","v":"clubadministratie: verwerking gegevens i.f.v. lidmaatschap"},{"$f":"SUM(IF(ISBLANK(Categorieën!B137)=TRUE,100,IF(Categorieën!B137>Categorieën!$B$137:$B$166,1,0)))+ROW()/100","v":17.02},{"$f":"SMALL($AH$2:$AH$31,ROW()-1)","v":6.14},{"$f":"SUM(IF(AI2=$AH$2:$AH$31,$AF$2:$AF$31,0))","v":13},{"$f":"IF(ISBLANK(VLOOKUP($AJ2,$AF$2:$AG$31,2))=TRUE,\"\",VLOOKUP($AJ2,$AF$2:$AG$31,2))","v":"administratie deelnemers: deelnemers indelen in categoriën en groepen"},null,1,{"$f":"IF(ISBLANK(Categorieën!B169)=TRUE,\" \",Categorieën!B169)","v":"standaardmaatregelen"},{"$f":"SUM(IF(ISBLANK(Categorieën!B169)=TRUE,100,IF(Categorieën!B169>Categorieën!$B$169:$B$198,1,0)))+ROW()/100","v":26.02},{"$f":"SMALL($AO$2:$AO$31,ROW()-1)","v":21.04},{"$f":"SUM(IF(AP2=$AO$2:$AO$31,$AM$2:$AM$31,0))","v":3},{"$f":"IF(ISBLANK(VLOOKUP($AQ2,$AM$2:$AN$31,2))=TRUE,\"\",VLOOKUP($AQ2,$AM$2:$AN$31,2))","v":"organisatorische maatregel: enkel bestuurleden met autorisatie kunnen aan de gegevens"}]
[null,"contractuele grond",null,2,{"$f":"IF(ISBLANK(Categorieën!B10)=TRUE,\" \",Categorieën!B10)","v":"persoonlijke gegevens: lidnummer"},{"$f":"SUM(IF(ISBLANK(Categorieën!B10)=TRUE,100,IF(Categorieën!B10>Categorieën!$B$9:$B$38,1,0)))+ROW()/100","v":20.03},{"$f":"SMALL($F$2:$F$31,ROW()-1)","v":12.18},{"$f":"SUM(IF(G3=$F$2:$F$31,$D$2:$D$31,0))","v":17},{"$f":"IF(ISBLANK(VLOOKUP($H3,$D$2:$E$31,2))=TRUE,\"\",VLOOKUP($H3,$D$2:$E$31,2))","v":"competitiegegevens federatie: aansluitingsnummer, klassement"},null,2,{"$f":"IF(ISBLANK(Categorieën!B42)=TRUE,\" \",Categorieën!B42)","v":"ouders van leden"},{"$f":"SUM(IF(ISBLANK(Categorieën!B42)=TRUE,100,IF(Categorieën!B42>Categorieën!$B$41:$B$70,1,0)))+ROW()/100","v":23.03},{"$f":"SMALL($M$2:$M$31,ROW()-1)","v":17.13},{"$f":"SUM(IF(N3=$M$2:$M$31,$K$2:$K$31,0))","v":12},{"$f":"IF(ISBLANK(VLOOKUP($O3,$K$2:$L$31,2))=TRUE,\"\",VLOOKUP($O3,$K$2:$L$31,2))","v":"contacten bij andere clubs"},null,2,{"$f":"IF(ISBLANK(Categorieën!B74)=TRUE,\" \",Categorieën!B74)","v":"sportieve voorbereiding (o.a. trainingen, stages)"},{"$f":"SUM(IF(ISBLANK(Categorieën!B74)=TRUE,100,IF(Categorieën!B74>Categorieën!$B$73:$B$102,1,0)))+ROW()/100","v":29.03},{"$f":"SMALL($T$2:$T$31,ROW()-1)","v":26.02},{"$f":"SUM(IF(U3=$T$2:$T$31,$R$2:$R$31,0))","v":1},{"$f":"IF(ISBLANK(VLOOKUP($V3,$R$2:$S$31,2))=TRUE,\"\",VLOOKUP($V3,$R$2:$S$31,2))","v":"ledenadministratie"},null,2,{"$f":"IF(ISBLANK(Categorieën!B106)=TRUE,\" \",Categorieën!B106)","v":"federatie"},{"$f":"SUM(IF(ISBLANK(Categorieën!B106)=TRUE,100,IF(Categorieën!B106>Categorieën!$B$105:$B$134,1,0)))+ROW()/100","v":23.03},{"$f":"SMALL($AA$2:$AA$31,ROW()-1)","v":24.02},{"$f":"SUM(IF(AB3=$AA$2:$AA$31,$Y$2:$Y$31,0))","v":1},{"$f":"IF(ISBLANK(VLOOKUP($AC3,$Y$2:$Z$31,2))=TRUE,\"\",VLOOKUP($AC3,$Y$2:$Z$31,2))","v":"leden"},null,2,{"$f":"IF(ISBLANK(Categorieën!B138)=TRUE,\" \",Categorieën!B138)","v":"clubadministratie: verwerking gegevens i.f.v. verzekering"},{"$f":"SUM(IF(ISBLANK(Categorieën!B138)=TRUE,100,IF(Categorieën!B138>Categorieën!$B$137:$B$166,1,0)))+ROW()/100","v":18.03},{"$f":"SMALL($AH$2:$AH$31,ROW()-1)","v":7.13},{"$f":"SUM(IF(AI3=$AH$2:$AH$31,$AF$2:$AF$31,0))","v":12},{"$f":"IF(ISBLANK(VLOOKUP($AJ3,$AF$2:$AG$31,2))=TRUE,\"\",VLOOKUP($AJ3,$AF$2:$AG$31,2))","v":"administratie deelnemers: verwerking gegevens i.f.v. begeleiding van deelnemers (verlenen van psychische of materiële ondersteuning)"},null,2,{"$f":"IF(ISBLANK(Categorieën!B170)=TRUE,\" \",Categorieën!B170)","v":"organisatorische maatregel: enkel de secretaris kan aan de gegevens"},{"$f":"SUM(IF(ISBLANK(Categorieën!B170)=TRUE,100,IF(Categorieën!B170>Categorieën!$B$169:$B$198,1,0)))+ROW()/100","v":22.03},{"$f":"SMALL($AO$2:$AO$31,ROW()-1)","v":22.03},{"$f":"SUM(IF(AP3=$AO$2:$AO$31,$AM$2:$AM$31,0))","v":2},{"$f":"IF(ISBLANK(VLOOKUP($AQ3,$AM$2:$AN$31,2))=TRUE,\"\",VLOOKUP($AQ3,$AM$2:$AN$31,2))","v":"organisatorische maatregel: enkel de secretaris kan aan de gegevens"}]
[null,"gerechtvaardigd belang ",null,3,{"$f":"IF(ISBLANK(Categorieën!B11)=TRUE,\" \",Categorieën!B11)","v":"persoonlijke gegevens: naam"},{"$f":"SUM(IF(ISBLANK(Categorieën!B11)=TRUE,100,IF(Categorieën!B11>Categorieën!$B$9:$B$38,1,0)))+ROW()/100","v":21.04},{"$f":"SMALL($F$2:$F$31,ROW()-1)","v":13.19},{"$f":"SUM(IF(G4=$F$2:$F$31,$D$2:$D$31,0))","v":18},{"$f":"IF(ISBLANK(VLOOKUP($H4,$D$2:$E$31,2))=TRUE,\"\",VLOOKUP($H4,$D$2:$E$31,2))","v":"competitiegegevens federatie: wedstrijdgegevens en -resultaten"},null,3,{"$f":"IF(ISBLANK(Categorieën!B43)=TRUE,\" \",Categorieën!B43)","v":"deelnemers (leden)"},{"$f":"SUM(IF(ISBLANK(Categorieën!B43)=TRUE,100,IF(Categorieën!B43>Categorieën!$B$41:$B$70,1,0)))+ROW()/100","v":20.04},{"$f":"SMALL($M$2:$M$31,ROW()-1)","v":18.149999999999999},{"$f":"SUM(IF(N4=$M$2:$M$31,$K$2:$K$31,0))","v":14},{"$f":"IF(ISBLANK(VLOOKUP($O4,$K$2:$L$31,2))=TRUE,\"\",VLOOKUP($O4,$K$2:$L$31,2))","v":"contacten bij de (lokale) overheden"},null,3,{"$f":"IF(ISBLANK(Categorieën!B75)=TRUE,\" \",Categorieën!B75)","v":"deelnemen aan competities en tornooien"},{"$f":"SUM(IF(ISBLANK(Categorieën!B75)=TRUE,100,IF(Categorieën!B75>Categorieën!$B$73:$B$102,1,0)))+ROW()/100","v":25.04},{"$f":"SMALL($T$2:$T$31,ROW()-1)","v":27.05},{"$f":"SUM(IF(U4=$T$2:$T$31,$R$2:$R$31,0))","v":4},{"$f":"IF(ISBLANK(VLOOKUP($V4,$R$2:$S$31,2))=TRUE,\"\",VLOOKUP($V4,$R$2:$S$31,2))","v":"organiseren van niet-sportgerelateerde clubevenementen"},null,3,{"$f":"IF(ISBLANK(Categorieën!B107)=TRUE,\" \",Categorieën!B107)","v":"overheid: Sport Vlaanderen"},{"$f":"SUM(IF(ISBLANK(Categorieën!B107)=TRUE,100,IF(Categorieën!B107>Categorieën!$B$105:$B$134,1,0)))+ROW()/100","v":25.04},{"$f":"SMALL($AA$2:$AA$31,ROW()-1)","v":25.04},{"$f":"SUM(IF(AB4=$AA$2:$AA$31,$Y$2:$Y$31,0))","v":3},{"$f":"IF(ISBLANK(VLOOKUP($AC4,$Y$2:$Z$31,2))=TRUE,\"\",VLOOKUP($AC4,$Y$2:$Z$31,2))","v":"overheid: Sport Vlaanderen"},null,3,{"$f":"IF(ISBLANK(Categorieën!B139)=TRUE,\" \",Categorieën!B139)","v":"clubadministratie: verwerking gegevens i.f.v. begeleiding van leden (verlenen van psychische of materiële ondersteuning)"},{"$f":"SUM(IF(ISBLANK(Categorieën!B139)=TRUE,100,IF(Categorieën!B139>Categorieën!$B$137:$B$166,1,0)))+ROW()/100","v":16.04},{"$f":"SMALL($AH$2:$AH$31,ROW()-1)","v":8.11},{"$f":"SUM(IF(AI4=$AH$2:$AH$31,$AF$2:$AF$31,0))","v":10},{"$f":"IF(ISBLANK(VLOOKUP($AJ4,$AF$2:$AG$31,2))=TRUE,\"\",VLOOKUP($AJ4,$AF$2:$AG$31,2))","v":"administratie deelnemers: verwerking gegevens i.f.v. deelname"},null,3,{"$f":"IF(ISBLANK(Categorieën!B171)=TRUE,\" \",Categorieën!B171)","v":"organisatorische maatregel: enkel bestuurleden met autorisatie kunnen aan de gegevens"},{"$f":"SUM(IF(ISBLANK(Categorieën!B171)=TRUE,100,IF(Categorieën!B171>Categorieën!$B$169:$B$198,1,0)))+ROW()/100","v":21.04},{"$f":"SMALL($AO$2:$AO$31,ROW()-1)","v":23.05},{"$f":"SUM(IF(AP4=$AO$2:$AO$31,$AM$2:$AM$31,0))","v":4},{"$f":"IF(ISBLANK(VLOOKUP($AQ4,$AM$2:$AN$31,2))=TRUE,\"\",VLOOKUP($AQ4,$AM$2:$AN$31,2))","v":"organisatorische maatregel: enkel wie ingelogd is op de website kan aan de gegevens"}]
[null,"toestemming",null,4,{"$f":"IF(ISBLANK(Categorieën!B12)=TRUE,\" \",Categorieën!B12)","v":"persoonlijke gegevens: adres"},{"$f":"SUM(IF(ISBLANK(Categorieën!B12)=TRUE,100,IF(Categorieën!B12>Categorieën!$B$9:$B$38,1,0)))+ROW()/100","v":16.05},{"$f":"SMALL($F$2:$F$31,ROW()-1)","v":14.2},{"$f":"SUM(IF(G5=$F$2:$F$31,$D$2:$D$31,0))","v":19},{"$f":"IF(ISBLANK(VLOOKUP($H5,$D$2:$E$31,2))=TRUE,\"\",VLOOKUP($H5,$D$2:$E$31,2))","v":"gegevens van derden: naam, telefoonnummer, e-mailadres van de ouders"},null,4,{"$f":"IF(ISBLANK(Categorieën!B44)=TRUE,\" \",Categorieën!B44)","v":"deelnemers (niet-leden)"},{"$f":"SUM(IF(ISBLANK(Categorieën!B44)=TRUE,100,IF(Categorieën!B44>Categorieën!$B$41:$B$70,1,0)))+ROW()/100","v":21.05},{"$f":"SMALL($M$2:$M$31,ROW()-1)","v":19.14},{"$f":"SUM(IF(N5=$M$2:$M$31,$K$2:$K$31,0))","v":13},{"$f":"IF(ISBLANK(VLOOKUP($O5,$K$2:$L$31,2))=TRUE,\"\",VLOOKUP($O5,$K$2:$L$31,2))","v":"contacten bij de federatie"},null,4,{"$f":"IF(ISBLANK(Categorieën!B76)=TRUE,\" \",Categorieën!B76)","v":"organiseren van niet-sportgerelateerde clubevenementen"},{"$f":"SUM(IF(ISBLANK(Categorieën!B76)=TRUE,100,IF(Categorieën!B76>Categorieën!$B$73:$B$102,1,0)))+ROW()/100","v":27.05},{"$f":"SMALL($T$2:$T$31,ROW()-1)","v":28.06},{"$f":"SUM(IF(U5=$T$2:$T$31,$R$2:$R$31,0))","v":5},{"$f":"IF(ISBLANK(VLOOKUP($V5,$R$2:$S$31,2))=TRUE,\"\",VLOOKUP($V5,$R$2:$S$31,2))","v":"promotie, PR en communicatie"},null,4,{"$f":"IF(ISBLANK(Categorieën!B108)=TRUE,\" \",Categorieën!B108)","v":"overheid: Stad Zottegem (subsidiedossier)"},{"$f":"SUM(IF(ISBLANK(Categorieën!B108)=TRUE,100,IF(Categorieën!B108>Categorieën!$B$105:$B$134,1,0)))+ROW()/100","v":26.05},{"$f":"SMALL($AA$2:$AA$31,ROW()-1)","v":26.05},{"$f":"SUM(IF(AB5=$AA$2:$AA$31,$Y$2:$Y$31,0))","v":4},{"$f":"IF(ISBLANK(VLOOKUP($AC5,$Y$2:$Z$31,2))=TRUE,\"\",VLOOKUP($AC5,$Y$2:$Z$31,2))","v":"overheid: Stad Zottegem (subsidiedossier)"},null,4,{"$f":"IF(ISBLANK(Categorieën!B140)=TRUE,\" \",Categorieën!B140)","v":"clubadministratie: verwerking gegevens i.f.v. vorming van leden"},{"$f":"SUM(IF(ISBLANK(Categorieën!B140)=TRUE,100,IF(Categorieën!B140>Categorieën!$B$137:$B$166,1,0)))+ROW()/100","v":19.05},{"$f":"SMALL($AH$2:$AH$31,ROW()-1)","v":9.1199999999999992},{"$f":"SUM(IF(AI5=$AH$2:$AH$31,$AF$2:$AF$31,0))","v":11},{"$f":"IF(ISBLANK(VLOOKUP($AJ5,$AF$2:$AG$31,2))=TRUE,\"\",VLOOKUP($AJ5,$AF$2:$AG$31,2))","v":"administratie deelnemers: verwerking gegevens i.f.v. verzekering"},null,4,{"$f":"IF(ISBLANK(Categorieën!B172)=TRUE,\" \",Categorieën!B172)","v":"organisatorische maatregel: enkel wie ingelogd is op de website kan aan de gegevens"},{"$f":"SUM(IF(ISBLANK(Categorieën!B172)=TRUE,100,IF(Categorieën!B172>Categorieën!$B$169:$B$198,1,0)))+ROW()/100","v":23.05},{"$f":"SMALL($AO$2:$AO$31,ROW()-1)","v":24.06},{"$f":"SUM(IF(AP5=$AO$2:$AO$31,$AM$2:$AM$31,0))","v":5},{"$f":"IF(ISBLANK(VLOOKUP($AQ5,$AM$2:$AN$31,2))=TRUE,\"\",VLOOKUP($AQ5,$AM$2:$AN$31,2))","v":"organisatorische maatregel: materiaal enkel op eigen site"}]
[null,"vitaal belang",null,5,{"$f":"IF(ISBLANK(Categorieën!B13)=TRUE,\" \",Categorieën!B13)","v":"persoonlijke gegevens: telefoonnummer"},{"$f":"SUM(IF(ISBLANK(Categorieën!B13)=TRUE,100,IF(Categorieën!B13>Categorieën!$B$9:$B$38,1,0)))+ROW()/100","v":29.06},{"$f":"SMALL($F$2:$F$31,ROW()-1)","v":15.17},{"$f":"SUM(IF(G6=$F$2:$F$31,$D$2:$D$31,0))","v":16},{"$f":"IF(ISBLANK(VLOOKUP($H6,$D$2:$E$31,2))=TRUE,\"\",VLOOKUP($H6,$D$2:$E$31,2))","v":"gevoelige gegevens: gegevens betreffende lichamelijke of psychische gezondheid (medische fiches): medisch dossier, medisch verslag, diagnose-informatie, behandeling, dieet, allergieën,handicap, andere bijzondere vereisten i.v.m. gezondheid "},null,5,{"$f":"IF(ISBLANK(Categorieën!B45)=TRUE,\" \",Categorieën!B45)","v":"bestuurders"},{"$f":"SUM(IF(ISBLANK(Categorieën!B45)=TRUE,100,IF(Categorieën!B45>Categorieën!$B$41:$B$70,1,0)))+ROW()/100","v":16.059999999999999},{"$f":"SMALL($M$2:$M$31,ROW()-1)","v":20.04},{"$f":"SUM(IF(N6=$M$2:$M$31,$K$2:$K$31,0))","v":3},{"$f":"IF(ISBLANK(VLOOKUP($O6,$K$2:$L$31,2))=TRUE,\"\",VLOOKUP($O6,$K$2:$L$31,2))","v":"deelnemers (leden)"},null,5,{"$f":"IF(ISBLANK(Categorieën!B77)=TRUE,\" \",Categorieën!B77)","v":"promotie, PR en communicatie"},{"$f":"SUM(IF(ISBLANK(Categorieën!B77)=TRUE,100,IF(Categorieën!B77>Categorieën!$B$73:$B$102,1,0)))+ROW()/100","v":28.06},{"$f":"SMALL($T$2:$T$31,ROW()-1)","v":29.03},{"$f":"SUM(IF(U6=$T$2:$T$31,$R$2:$R$31,0))","v":2},{"$f":"IF(ISBLANK(VLOOKUP($V6,$R$2:$S$31,2))=TRUE,\"\",VLOOKUP($V6,$R$2:$S$31,2))","v":"sportieve voorbereiding (o.a. trainingen, stages)"},null,5,{"$f":"IF(ISBLANK(Categorieën!B109)=TRUE,\" \",Categorieën!B109)","v":"verzekeraar (via Federatie)"},{"$f":"SUM(IF(ISBLANK(Categorieën!B109)=TRUE,100,IF(Categorieën!B109>Categorieën!$B$105:$B$134,1,0)))+ROW()/100","v":29.06},{"$f":"SMALL($AA$2:$AA$31,ROW()-1)","v":27.08},{"$f":"SUM(IF(AB6=$AA$2:$AA$31,$Y$2:$Y$31,0))","v":7},{"$f":"IF(ISBLANK(VLOOKUP($AC6,$Y$2:$Z$31,2))=TRUE,\"\",VLOOKUP($AC6,$Y$2:$Z$31,2))","v":"publiek (foto's via website en facebookpagina)"},null,5,{"$f":"IF(ISBLANK(Categorieën!B141)=TRUE,\" \",Categorieën!B141)","v":"clubadministratie: leden indelen in categoriën en groepen"},{"$f":"SUM(IF(ISBLANK(Categorieën!B141)=TRUE,100,IF(Categorieën!B141>Categorieën!$B$137:$B$166,1,0)))+ROW()/100","v":13.06},{"$f":"SMALL($AH$2:$AH$31,ROW()-1)","v":10.25},{"$f":"SUM(IF(AI6=$AH$2:$AH$31,$AF$2:$AF$31,0))","v":24},{"$f":"IF(ISBLANK(VLOOKUP($AJ6,$AF$2:$AG$31,2))=TRUE,\"\",VLOOKUP($AJ6,$AF$2:$AG$31,2))","v":"beheren clubwebsite"},null,5,{"$f":"IF(ISBLANK(Categorieën!B173)=TRUE,\" \",Categorieën!B173)","v":"organisatorische maatregel: materiaal enkel op eigen site"},{"$f":"SUM(IF(ISBLANK(Categorieën!B173)=TRUE,100,IF(Categorieën!B173>Categorieën!$B$169:$B$198,1,0)))+ROW()/100","v":24.06},{"$f":"SMALL($AO$2:$AO$31,ROW()-1)","v":25.07},{"$f":"SUM(IF(AP6=$AO$2:$AO$31,$AM$2:$AM$31,0))","v":6},{"$f":"IF(ISBLANK(VLOOKUP($AQ6,$AM$2:$AN$31,2))=TRUE,\"\",VLOOKUP($AQ6,$AM$2:$AN$31,2))","v":"organisatorische maatregel: medische fiches worden bijgehouden in gesloten koffer"}]
[null,"wettelijke verplichting",null,6,{"$f":"IF(ISBLANK(Categorieën!B14)=TRUE,\" \",Categorieën!B14)","v":"persoonlijke gegevens: e-mailadres"},{"$f":"SUM(IF(ISBLANK(Categorieën!B14)=TRUE,100,IF(Categorieën!B14>Categorieën!$B$9:$B$38,1,0)))+ROW()/100","v":17.07},{"$f":"SMALL($F$2:$F$31,ROW()-1)","v":16.05},{"$f":"SUM(IF(G7=$F$2:$F$31,$D$2:$D$31,0))","v":4},{"$f":"IF(ISBLANK(VLOOKUP($H7,$D$2:$E$31,2))=TRUE,\"\",VLOOKUP($H7,$D$2:$E$31,2))","v":"persoonlijke gegevens: adres"},null,6,{"$f":"IF(ISBLANK(Categorieën!B46)=TRUE,\" \",Categorieën!B46)","v":"trainers (intern)"},{"$f":"SUM(IF(ISBLANK(Categorieën!B46)=TRUE,100,IF(Categorieën!B46>Categorieën!$B$41:$B$70,1,0)))+ROW()/100","v":28.07},{"$f":"SMALL($M$2:$M$31,ROW()-1)","v":21.05},{"$f":"SUM(IF(N7=$M$2:$M$31,$K$2:$K$31,0))","v":4},{"$f":"IF(ISBLANK(VLOOKUP($O7,$K$2:$L$31,2))=TRUE,\"\",VLOOKUP($O7,$K$2:$L$31,2))","v":"deelnemers (niet-leden)"},null,6,{"$f":"IF(ISBLANK(Categorieën!B78)=TRUE,\" \",Categorieën!B78)","v":" "},{"$f":"SUM(IF(ISBLANK(Categorieën!B78)=TRUE,100,IF(Categorieën!B78>Categorieën!$B$73:$B$102,1,0)))+ROW()/100","v":100.07},{"$f":"SMALL($T$2:$T$31,ROW()-1)","v":100.07},{"$f":"SUM(IF(U7=$T$2:$T$31,$R$2:$R$31,0))","v":6},{"$f":"IF(ISBLANK(VLOOKUP($V7,$R$2:$S$31,2))=TRUE,\"\",VLOOKUP($V7,$R$2:$S$31,2))","v":" "},null,6,{"$f":"IF(ISBLANK(Categorieën!B110)=TRUE,\" \",Categorieën!B110)","v":"publiek (intern in de club via competitieboekje)"},{"$f":"SUM(IF(ISBLANK(Categorieën!B110)=TRUE,100,IF(Categorieën!B110>Categorieën!$B$105:$B$134,1,0)))+ROW()/100","v":28.07},{"$f":"SMALL($AA$2:$AA$31,ROW()-1)","v":28.07},{"$f":"SUM(IF(AB7=$AA$2:$AA$31,$Y$2:$Y$31,0))","v":6},{"$f":"IF(ISBLANK(VLOOKUP($AC7,$Y$2:$Z$31,2))=TRUE,\"\",VLOOKUP($AC7,$Y$2:$Z$31,2))","v":"publiek (intern in de club via competitieboekje)"},null,6,{"$f":"IF(ISBLANK(Categorieën!B142)=TRUE,\" \",Categorieën!B142)","v":"clubadministratie: uitwisseling van gegevens van trainers"},{"$f":"SUM(IF(ISBLANK(Categorieën!B142)=TRUE,100,IF(Categorieën!B142>Categorieën!$B$137:$B$166,1,0)))+ROW()/100","v":15.07},{"$f":"SMALL($AH$2:$AH$31,ROW()-1)","v":11.24},{"$f":"SUM(IF(AI7=$AH$2:$AH$31,$AF$2:$AF$31,0))","v":23},{"$f":"IF(ISBLANK(VLOOKUP($AJ7,$AF$2:$AG$31,2))=TRUE,\"\",VLOOKUP($AJ7,$AF$2:$AG$31,2))","v":"beheren social media - gerichte foto's"},null,6,{"$f":"IF(ISBLANK(Categorieën!B174)=TRUE,\" \",Categorieën!B174)","v":"organisatorische maatregel: medische fiches worden bijgehouden in gesloten koffer"},{"$f":"SUM(IF(ISBLANK(Categorieën!B174)=TRUE,100,IF(Categorieën!B174>Categorieën!$B$169:$B$198,1,0)))+ROW()/100","v":25.07},{"$f":"SMALL($AO$2:$AO$31,ROW()-1)","v":26.02},{"$f":"SUM(IF(AP7=$AO$2:$AO$31,$AM$2:$AM$31,0))","v":1},{"$f":"IF(ISBLANK(VLOOKUP($AQ7,$AM$2:$AN$31,2))=TRUE,\"\",VLOOKUP($AQ7,$AM$2:$AN$31,2))","v":"standaardmaatregelen"}]
[null,null,null,7,{"$f":"IF(ISBLANK(Categorieën!B15)=TRUE,\" \",Categorieën!B15)","v":"persoonlijke gegevens: nationaliteit"},{"$f":"SUM(IF(ISBLANK(Categorieën!B15)=TRUE,100,IF(Categorieën!B15>Categorieën!$B$9:$B$38,1,0)))+ROW()/100","v":28.08},{"$f":"SMALL($F$2:$F$31,ROW()-1)","v":17.07},{"$f":"SUM(IF(G8=$F$2:$F$31,$D$2:$D$31,0))","v":6},{"$f":"IF(ISBLANK(VLOOKUP($H8,$D$2:$E$31,2))=TRUE,\"\",VLOOKUP($H8,$D$2:$E$31,2))","v":"persoonlijke gegevens: e-mailadres"},null,7,{"$f":"IF(ISBLANK(Categorieën!B47)=TRUE,\" \",Categorieën!B47)","v":"trainers (extern)"},{"$f":"SUM(IF(ISBLANK(Categorieën!B47)=TRUE,100,IF(Categorieën!B47>Categorieën!$B$41:$B$70,1,0)))+ROW()/100","v":27.08},{"$f":"SMALL($M$2:$M$31,ROW()-1)","v":22.02},{"$f":"SUM(IF(N8=$M$2:$M$31,$K$2:$K$31,0))","v":1},{"$f":"IF(ISBLANK(VLOOKUP($O8,$K$2:$L$31,2))=TRUE,\"\",VLOOKUP($O8,$K$2:$L$31,2))","v":"leden"},null,7,{"$f":"IF(ISBLANK(Categorieën!B79)=TRUE,\" \",Categorieën!B79)","v":" "},{"$f":"SUM(IF(ISBLANK(Categorieën!B79)=TRUE,100,IF(Categorieën!B79>Categorieën!$B$73:$B$102,1,0)))+ROW()/100","v":100.08},{"$f":"SMALL($T$2:$T$31,ROW()-1)","v":100.08},{"$f":"SUM(IF(U8=$T$2:$T$31,$R$2:$R$31,0))","v":7},{"$f":"IF(ISBLANK(VLOOKUP($V8,$R$2:$S$31,2))=TRUE,\"\",VLOOKUP($V8,$R$2:$S$31,2))","v":" "},null,7,{"$f":"IF(ISBLANK(Categorieën!B111)=TRUE,\" \",Categorieën!B111)","v":"publiek (foto's via website en facebookpagina)"},{"$f":"SUM(IF(ISBLANK(Categorieën!B111)=TRUE,100,IF(Categorieën!B111>Categorieën!$B$105:$B$134,1,0)))+ROW()/100","v":27.08},{"$f":"SMALL($AA$2:$AA$31,ROW()-1)","v":29.06},{"$f":"SUM(IF(AB8=$AA$2:$AA$31,$Y$2:$Y$31,0))","v":5},{"$f":"IF(ISBLANK(VLOOKUP($AC8,$Y$2:$Z$31,2))=TRUE,\"\",VLOOKUP($AC8,$Y$2:$Z$31,2))","v":"verzekeraar (via Federatie)"},null,7,{"$f":"IF(ISBLANK(Categorieën!B143)=TRUE,\" \",Categorieën!B143)","v":"clubadministratie: onderlinge uitwisseling van ledengegevens"},{"$f":"SUM(IF(ISBLANK(Categorieën!B143)=TRUE,100,IF(Categorieën!B143>Categorieën!$B$137:$B$166,1,0)))+ROW()/100","v":14.08},{"$f":"SMALL($AH$2:$AH$31,ROW()-1)","v":12.23},{"$f":"SUM(IF(AI8=$AH$2:$AH$31,$AF$2:$AF$31,0))","v":22},{"$f":"IF(ISBLANK(VLOOKUP($AJ8,$AF$2:$AG$31,2))=TRUE,\"\",VLOOKUP($AJ8,$AF$2:$AG$31,2))","v":"beheren social media - sfeerfoto's"},null,7,{"$f":"IF(ISBLANK(Categorieën!B175)=TRUE,\" \",Categorieën!B175)","v":"technische maatregel: encryptie"},{"$f":"SUM(IF(ISBLANK(Categorieën!B175)=TRUE,100,IF(Categorieën!B175>Categorieën!$B$169:$B$198,1,0)))+ROW()/100","v":27.08},{"$f":"SMALL($AO$2:$AO$31,ROW()-1)","v":27.08},{"$f":"SUM(IF(AP8=$AO$2:$AO$31,$AM$2:$AM$31,0))","v":7},{"$f":"IF(ISBLANK(VLOOKUP($AQ8,$AM$2:$AN$31,2))=TRUE,\"\",VLOOKUP($AQ8,$AM$2:$AN$31,2))","v":"technische maatregel: encryptie"}]
[null,null,null,8,{"$f":"IF(ISBLANK(Categorieën!B16)=TRUE,\" \",Categorieën!B16)","v":"persoonlijke gegevens: leeftijd, geboortedatum, geboorteplaats"},{"$f":"SUM(IF(ISBLANK(Categorieën!B16)=TRUE,100,IF(Categorieën!B16>Categorieën!$B$9:$B$38,1,0)))+ROW()/100","v":19.09},{"$f":"SMALL($F$2:$F$31,ROW()-1)","v":18.16},{"$f":"SUM(IF(G9=$F$2:$F$31,$D$2:$D$31,0))","v":15},{"$f":"IF(ISBLANK(VLOOKUP($H9,$D$2:$E$31,2))=TRUE,\"\",VLOOKUP($H9,$D$2:$E$31,2))","v":"persoonlijke gegevens: gevolgde opleidingen, resultaten opleidingen, attesten van deelname"},null,8,{"$f":"IF(ISBLANK(Categorieën!B48)=TRUE,\" \",Categorieën!B48)","v":"personeel"},{"$f":"SUM(IF(ISBLANK(Categorieën!B48)=TRUE,100,IF(Categorieën!B48>Categorieën!$B$41:$B$70,1,0)))+ROW()/100","v":24.09},{"$f":"SMALL($M$2:$M$31,ROW()-1)","v":23.03},{"$f":"SUM(IF(N9=$M$2:$M$31,$K$2:$K$31,0))","v":2},{"$f":"IF(ISBLANK(VLOOKUP($O9,$K$2:$L$31,2))=TRUE,\"\",VLOOKUP($O9,$K$2:$L$31,2))","v":"ouders van leden"},null,8,{"$f":"IF(ISBLANK(Categorieën!B80)=TRUE,\" \",Categorieën!B80)","v":" "},{"$f":"SUM(IF(ISBLANK(Categorieën!B80)=TRUE,100,IF(Categorieën!B80>Categorieën!$B$73:$B$102,1,0)))+ROW()/100","v":100.09},{"$f":"SMALL($T$2:$T$31,ROW()-1)","v":100.09},{"$f":"SUM(IF(U9=$T$2:$T$31,$R$2:$R$31,0))","v":8},{"$f":"IF(ISBLANK(VLOOKUP($V9,$R$2:$S$31,2))=TRUE,\"\",VLOOKUP($V9,$R$2:$S$31,2))","v":" "},null,8,{"$f":"IF(ISBLANK(Categorieën!B112)=TRUE,\" \",Categorieën!B112)","v":" "},{"$f":"SUM(IF(ISBLANK(Categorieën!B112)=TRUE,100,IF(Categorieën!B112>Categorieën!$B$105:$B$134,1,0)))+ROW()/100","v":100.09},{"$f":"SMALL($AA$2:$AA$31,ROW()-1)","v":100.09},{"$f":"SUM(IF(AB9=$AA$2:$AA$31,$Y$2:$Y$31,0))","v":8},{"$f":"IF(ISBLANK(VLOOKUP($AC9,$Y$2:$Z$31,2))=TRUE,\"\",VLOOKUP($AC9,$Y$2:$Z$31,2))","v":" "},null,8,{"$f":"IF(ISBLANK(Categorieën!B144)=TRUE,\" \",Categorieën!B144)","v":"communicatie met leden (versturen van nieuwsbrieven, mails…)"},{"$f":"SUM(IF(ISBLANK(Categorieën!B144)=TRUE,100,IF(Categorieën!B144>Categorieën!$B$137:$B$166,1,0)))+ROW()/100","v":21.09},{"$f":"SMALL($AH$2:$AH$31,ROW()-1)","v":13.06},{"$f":"SUM(IF(AI9=$AH$2:$AH$31,$AF$2:$AF$31,0))","v":5},{"$f":"IF(ISBLANK(VLOOKUP($AJ9,$AF$2:$AG$31,2))=TRUE,\"\",VLOOKUP($AJ9,$AF$2:$AG$31,2))","v":"clubadministratie: leden indelen in categoriën en groepen"},null,8,{"$f":"IF(ISBLANK(Categorieën!B176)=TRUE,\" \",Categorieën!B176)","v":"technische maatregel: firewall"},{"$f":"SUM(IF(ISBLANK(Categorieën!B176)=TRUE,100,IF(Categorieën!B176>Categorieën!$B$169:$B$198,1,0)))+ROW()/100","v":28.09},{"$f":"SMALL($AO$2:$AO$31,ROW()-1)","v":28.09},{"$f":"SUM(IF(AP9=$AO$2:$AO$31,$AM$2:$AM$31,0))","v":8},{"$f":"IF(ISBLANK(VLOOKUP($AQ9,$AM$2:$AN$31,2))=TRUE,\"\",VLOOKUP($AQ9,$AM$2:$AN$31,2))","v":"technische maatregel: firewall"}]
[null,null,null,9,{"$f":"IF(ISBLANK(Categorieën!B17)=TRUE,\" \",Categorieën!B17)","v":"persoonlijke gegevens: naam, adres"},{"$f":"SUM(IF(ISBLANK(Categorieën!B17)=TRUE,100,IF(Categorieën!B17>Categorieën!$B$9:$B$38,1,0)))+ROW()/100","v":22.1},{"$f":"SMALL($F$2:$F$31,ROW()-1)","v":19.09},{"$f":"SUM(IF(G10=$F$2:$F$31,$D$2:$D$31,0))","v":8},{"$f":"IF(ISBLANK(VLOOKUP($H10,$D$2:$E$31,2))=TRUE,\"\",VLOOKUP($H10,$D$2:$E$31,2))","v":"persoonlijke gegevens: leeftijd, geboortedatum, geboorteplaats"},null,9,{"$f":"IF(ISBLANK(Categorieën!B49)=TRUE,\" \",Categorieën!B49)","v":"vrijwilligers"},{"$f":"SUM(IF(ISBLANK(Categorieën!B49)=TRUE,100,IF(Categorieën!B49>Categorieën!$B$41:$B$70,1,0)))+ROW()/100","v":29.1},{"$f":"SMALL($M$2:$M$31,ROW()-1)","v":24.09},{"$f":"SUM(IF(N10=$M$2:$M$31,$K$2:$K$31,0))","v":8},{"$f":"IF(ISBLANK(VLOOKUP($O10,$K$2:$L$31,2))=TRUE,\"\",VLOOKUP($O10,$K$2:$L$31,2))","v":"personeel"},null,9,{"$f":"IF(ISBLANK(Categorieën!B81)=TRUE,\" \",Categorieën!B81)","v":" "},{"$f":"SUM(IF(ISBLANK(Categorieën!B81)=TRUE,100,IF(Categorieën!B81>Categorieën!$B$73:$B$102,1,0)))+ROW()/100","v":100.1},{"$f":"SMALL($T$2:$T$31,ROW()-1)","v":100.1},{"$f":"SUM(IF(U10=$T$2:$T$31,$R$2:$R$31,0))","v":9},{"$f":"IF(ISBLANK(VLOOKUP($V10,$R$2:$S$31,2))=TRUE,\"\",VLOOKUP($V10,$R$2:$S$31,2))","v":" "},null,9,{"$f":"IF(ISBLANK(Categorieën!B113)=TRUE,\" \",Categorieën!B113)","v":" "},{"$f":"SUM(IF(ISBLANK(Categorieën!B113)=TRUE,100,IF(Categorieën!B113>Categorieën!$B$105:$B$134,1,0)))+ROW()/100","v":100.1},{"$f":"SMALL($AA$2:$AA$31,ROW()-1)","v":100.1},{"$f":"SUM(IF(AB10=$AA$2:$AA$31,$Y$2:$Y$31,0))","v":9},{"$f":"IF(ISBLANK(VLOOKUP($AC10,$Y$2:$Z$31,2))=TRUE,\"\",VLOOKUP($AC10,$Y$2:$Z$31,2))","v":" "},null,9,{"$f":"IF(ISBLANK(Categorieën!B145)=TRUE,\" \",Categorieën!B145)","v":"communicatie met deelnemers aan organisaties"},{"$f":"SUM(IF(ISBLANK(Categorieën!B145)=TRUE,100,IF(Categorieën!B145>Categorieën!$B$137:$B$166,1,0)))+ROW()/100","v":20.100000000000001},{"$f":"SMALL($AH$2:$AH$31,ROW()-1)","v":14.08},{"$f":"SUM(IF(AI10=$AH$2:$AH$31,$AF$2:$AF$31,0))","v":7},{"$f":"IF(ISBLANK(VLOOKUP($AJ10,$AF$2:$AG$31,2))=TRUE,\"\",VLOOKUP($AJ10,$AF$2:$AG$31,2))","v":"clubadministratie: onderlinge uitwisseling van ledengegevens"},null,9,{"$f":"IF(ISBLANK(Categorieën!B177)=TRUE,\" \",Categorieën!B177)","v":"technische maatregelen: privacyinstellingen"},{"$f":"SUM(IF(ISBLANK(Categorieën!B177)=TRUE,100,IF(Categorieën!B177>Categorieën!$B$169:$B$198,1,0)))+ROW()/100","v":29.1},{"$f":"SMALL($AO$2:$AO$31,ROW()-1)","v":29.1},{"$f":"SUM(IF(AP10=$AO$2:$AO$31,$AM$2:$AM$31,0))","v":9},{"$f":"IF(ISBLANK(VLOOKUP($AQ10,$AM$2:$AN$31,2))=TRUE,\"\",VLOOKUP($AQ10,$AM$2:$AN$31,2))","v":"technische maatregelen: privacyinstellingen"}]
[null,null,null,10,{"$f":"IF(ISBLANK(Categorieën!B18)=TRUE,\" \",Categorieën!B18)","v":"persoonlijke gegevens: naam, e-mailadres"},{"$f":"SUM(IF(ISBLANK(Categorieën!B18)=TRUE,100,IF(Categorieën!B18>Categorieën!$B$9:$B$38,1,0)))+ROW()/100","v":25.11},{"$f":"SMALL($F$2:$F$31,ROW()-1)","v":20.03},{"$f":"SUM(IF(G11=$F$2:$F$31,$D$2:$D$31,0))","v":2},{"$f":"IF(ISBLANK(VLOOKUP($H11,$D$2:$E$31,2))=TRUE,\"\",VLOOKUP($H11,$D$2:$E$31,2))","v":"persoonlijke gegevens: lidnummer"},null,10,{"$f":"IF(ISBLANK(Categorieën!B50)=TRUE,\" \",Categorieën!B50)","v":"sympathisanten"},{"$f":"SUM(IF(ISBLANK(Categorieën!B50)=TRUE,100,IF(Categorieën!B50>Categorieën!$B$41:$B$70,1,0)))+ROW()/100","v":26.11},{"$f":"SMALL($M$2:$M$31,ROW()-1)","v":25.12},{"$f":"SUM(IF(N11=$M$2:$M$31,$K$2:$K$31,0))","v":11},{"$f":"IF(ISBLANK(VLOOKUP($O11,$K$2:$L$31,2))=TRUE,\"\",VLOOKUP($O11,$K$2:$L$31,2))","v":"sponsors"},null,10,{"$f":"IF(ISBLANK(Categorieën!B82)=TRUE,\" \",Categorieën!B82)","v":" "},{"$f":"SUM(IF(ISBLANK(Categorieën!B82)=TRUE,100,IF(Categorieën!B82>Categorieën!$B$73:$B$102,1,0)))+ROW()/100","v":100.11},{"$f":"SMALL($T$2:$T$31,ROW()-1)","v":100.11},{"$f":"SUM(IF(U11=$T$2:$T$31,$R$2:$R$31,0))","v":10},{"$f":"IF(ISBLANK(VLOOKUP($V11,$R$2:$S$31,2))=TRUE,\"\",VLOOKUP($V11,$R$2:$S$31,2))","v":" "},null,10,{"$f":"IF(ISBLANK(Categorieën!B114)=TRUE,\" \",Categorieën!B114)","v":" "},{"$f":"SUM(IF(ISBLANK(Categorieën!B114)=TRUE,100,IF(Categorieën!B114>Categorieën!$B$105:$B$134,1,0)))+ROW()/100","v":100.11},{"$f":"SMALL($AA$2:$AA$31,ROW()-1)","v":100.11},{"$f":"SUM(IF(AB11=$AA$2:$AA$31,$Y$2:$Y$31,0))","v":10},{"$f":"IF(ISBLANK(VLOOKUP($AC11,$Y$2:$Z$31,2))=TRUE,\"\",VLOOKUP($AC11,$Y$2:$Z$31,2))","v":" "},null,10,{"$f":"IF(ISBLANK(Categorieën!B146)=TRUE,\" \",Categorieën!B146)","v":"administratie deelnemers: verwerking gegevens i.f.v. deelname"},{"$f":"SUM(IF(ISBLANK(Categorieën!B146)=TRUE,100,IF(Categorieën!B146>Categorieën!$B$137:$B$166,1,0)))+ROW()/100","v":8.11},{"$f":"SMALL($AH$2:$AH$31,ROW()-1)","v":15.07},{"$f":"SUM(IF(AI11=$AH$2:$AH$31,$AF$2:$AF$31,0))","v":6},{"$f":"IF(ISBLANK(VLOOKUP($AJ11,$AF$2:$AG$31,2))=TRUE,\"\",VLOOKUP($AJ11,$AF$2:$AG$31,2))","v":"clubadministratie: uitwisseling van gegevens van trainers"},null,10,{"$f":"IF(ISBLANK(Categorieën!B178)=TRUE,\" \",Categorieën!B178)","v":" "},{"$f":"SUM(IF(ISBLANK(Categorieën!B178)=TRUE,100,IF(Categorieën!B178>Categorieën!$B$169:$B$198,1,0)))+ROW()/100","v":100.11},{"$f":"SMALL($AO$2:$AO$31,ROW()-1)","v":100.11},{"$f":"SUM(IF(AP11=$AO$2:$AO$31,$AM$2:$AM$31,0))","v":10},{"$f":"IF(ISBLANK(VLOOKUP($AQ11,$AM$2:$AN$31,2))=TRUE,\"\",VLOOKUP($AQ11,$AM$2:$AN$31,2))","v":" "}]
[null,null,null,11,{"$f":"IF(ISBLANK(Categorieën!B19)=TRUE,\" \",Categorieën!B19)","v":"persoonlijke gegevens: naam, telefoonnummer"},{"$f":"SUM(IF(ISBLANK(Categorieën!B19)=TRUE,100,IF(Categorieën!B19>Categorieën!$B$9:$B$38,1,0)))+ROW()/100","v":26.12},{"$f":"SMALL($F$2:$F$31,ROW()-1)","v":21.04},{"$f":"SUM(IF(G12=$F$2:$F$31,$D$2:$D$31,0))","v":3},{"$f":"IF(ISBLANK(VLOOKUP($H12,$D$2:$E$31,2))=TRUE,\"\",VLOOKUP($H12,$D$2:$E$31,2))","v":"persoonlijke gegevens: naam"},null,11,{"$f":"IF(ISBLANK(Categorieën!B51)=TRUE,\" \",Categorieën!B51)","v":"sponsors"},{"$f":"SUM(IF(ISBLANK(Categorieën!B51)=TRUE,100,IF(Categorieën!B51>Categorieën!$B$41:$B$70,1,0)))+ROW()/100","v":25.12},{"$f":"SMALL($M$2:$M$31,ROW()-1)","v":26.11},{"$f":"SUM(IF(N12=$M$2:$M$31,$K$2:$K$31,0))","v":10},{"$f":"IF(ISBLANK(VLOOKUP($O12,$K$2:$L$31,2))=TRUE,\"\",VLOOKUP($O12,$K$2:$L$31,2))","v":"sympathisanten"},null,11,{"$f":"IF(ISBLANK(Categorieën!B83)=TRUE,\" \",Categorieën!B83)","v":" "},{"$f":"SUM(IF(ISBLANK(Categorieën!B83)=TRUE,100,IF(Categorieën!B83>Categorieën!$B$73:$B$102,1,0)))+ROW()/100","v":100.12},{"$f":"SMALL($T$2:$T$31,ROW()-1)","v":100.12},{"$f":"SUM(IF(U12=$T$2:$T$31,$R$2:$R$31,0))","v":11},{"$f":"IF(ISBLANK(VLOOKUP($V12,$R$2:$S$31,2))=TRUE,\"\",VLOOKUP($V12,$R$2:$S$31,2))","v":" "},null,11,{"$f":"IF(ISBLANK(Categorieën!B115)=TRUE,\" \",Categorieën!B115)","v":" "},{"$f":"SUM(IF(ISBLANK(Categorieën!B115)=TRUE,100,IF(Categorieën!B115>Categorieën!$B$105:$B$134,1,0)))+ROW()/100","v":100.12},{"$f":"SMALL($AA$2:$AA$31,ROW()-1)","v":100.12},{"$f":"SUM(IF(AB12=$AA$2:$AA$31,$Y$2:$Y$31,0))","v":11},{"$f":"IF(ISBLANK(VLOOKUP($AC12,$Y$2:$Z$31,2))=TRUE,\"\",VLOOKUP($AC12,$Y$2:$Z$31,2))","v":" "},null,11,{"$f":"IF(ISBLANK(Categorieën!B147)=TRUE,\" \",Categorieën!B147)","v":"administratie deelnemers: verwerking gegevens i.f.v. verzekering"},{"$f":"SUM(IF(ISBLANK(Categorieën!B147)=TRUE,100,IF(Categorieën!B147>Categorieën!$B$137:$B$166,1,0)))+ROW()/100","v":9.1199999999999992},{"$f":"SMALL($AH$2:$AH$31,ROW()-1)","v":16.04},{"$f":"SUM(IF(AI12=$AH$2:$AH$31,$AF$2:$AF$31,0))","v":3},{"$f":"IF(ISBLANK(VLOOKUP($AJ12,$AF$2:$AG$31,2))=TRUE,\"\",VLOOKUP($AJ12,$AF$2:$AG$31,2))","v":"clubadministratie: verwerking gegevens i.f.v. begeleiding van leden (verlenen van psychische of materiële ondersteuning)"},null,11,{"$f":"IF(ISBLANK(Categorieën!B179)=TRUE,\" \",Categorieën!B179)","v":" "},{"$f":"SUM(IF(ISBLANK(Categorieën!B179)=TRUE,100,IF(Categorieën!B179>Categorieën!$B$169:$B$198,1,0)))+ROW()/100","v":100.12},{"$f":"SMALL($AO$2:$AO$31,ROW()-1)","v":100.12},{"$f":"SUM(IF(AP12=$AO$2:$AO$31,$AM$2:$AM$31,0))","v":11},{"$f":"IF(ISBLANK(VLOOKUP($AQ12,$AM$2:$AN$31,2))=TRUE,\"\",VLOOKUP($AQ12,$AM$2:$AN$31,2))","v":" "}]
[null,null,null,12,{"$f":"IF(ISBLANK(Categorieën!B20)=TRUE,\" \",Categorieën!B20)","v":"persoonlijke gegevens: naam, adres, telefoonnummer"},{"$f":"SUM(IF(ISBLANK(Categorieën!B20)=TRUE,100,IF(Categorieën!B20>Categorieën!$B$9:$B$38,1,0)))+ROW()/100","v":23.13},{"$f":"SMALL($F$2:$F$31,ROW()-1)","v":22.1},{"$f":"SUM(IF(G13=$F$2:$F$31,$D$2:$D$31,0))","v":9},{"$f":"IF(ISBLANK(VLOOKUP($H13,$D$2:$E$31,2))=TRUE,\"\",VLOOKUP($H13,$D$2:$E$31,2))","v":"persoonlijke gegevens: naam, adres"},null,12,{"$f":"IF(ISBLANK(Categorieën!B52)=TRUE,\" \",Categorieën!B52)","v":"contacten bij andere clubs"},{"$f":"SUM(IF(ISBLANK(Categorieën!B52)=TRUE,100,IF(Categorieën!B52>Categorieën!$B$41:$B$70,1,0)))+ROW()/100","v":17.13},{"$f":"SMALL($M$2:$M$31,ROW()-1)","v":27.08},{"$f":"SUM(IF(N13=$M$2:$M$31,$K$2:$K$31,0))","v":7},{"$f":"IF(ISBLANK(VLOOKUP($O13,$K$2:$L$31,2))=TRUE,\"\",VLOOKUP($O13,$K$2:$L$31,2))","v":"trainers (extern)"},null,12,{"$f":"IF(ISBLANK(Categorieën!B84)=TRUE,\" \",Categorieën!B84)","v":" "},{"$f":"SUM(IF(ISBLANK(Categorieën!B84)=TRUE,100,IF(Categorieën!B84>Categorieën!$B$73:$B$102,1,0)))+ROW()/100","v":100.13},{"$f":"SMALL($T$2:$T$31,ROW()-1)","v":100.13},{"$f":"SUM(IF(U13=$T$2:$T$31,$R$2:$R$31,0))","v":12},{"$f":"IF(ISBLANK(VLOOKUP($V13,$R$2:$S$31,2))=TRUE,\"\",VLOOKUP($V13,$R$2:$S$31,2))","v":" "},null,12,{"$f":"IF(ISBLANK(Categorieën!B116)=TRUE,\" \",Categorieën!B116)","v":" "},{"$f":"SUM(IF(ISBLANK(Categorieën!B116)=TRUE,100,IF(Categorieën!B116>Categorieën!$B$105:$B$134,1,0)))+ROW()/100","v":100.13},{"$f":"SMALL($AA$2:$AA$31,ROW()-1)","v":100.13},{"$f":"SUM(IF(AB13=$AA$2:$AA$31,$Y$2:$Y$31,0))","v":12},{"$f":"IF(ISBLANK(VLOOKUP($AC13,$Y$2:$Z$31,2))=TRUE,\"\",VLOOKUP($AC13,$Y$2:$Z$31,2))","v":" "},null,12,{"$f":"IF(ISBLANK(Categorieën!B148)=TRUE,\" \",Categorieën!B148)","v":"administratie deelnemers: verwerking gegevens i.f.v. begeleiding van deelnemers (verlenen van psychische of materiële ondersteuning)"},{"$f":"SUM(IF(ISBLANK(Categorieën!B148)=TRUE,100,IF(Categorieën!B148>Categorieën!$B$137:$B$166,1,0)))+ROW()/100","v":7.13},{"$f":"SMALL($AH$2:$AH$31,ROW()-1)","v":17.02},{"$f":"SUM(IF(AI13=$AH$2:$AH$31,$AF$2:$AF$31,0))","v":1},{"$f":"IF(ISBLANK(VLOOKUP($AJ13,$AF$2:$AG$31,2))=TRUE,\"\",VLOOKUP($AJ13,$AF$2:$AG$31,2))","v":"clubadministratie: verwerking gegevens i.f.v. lidmaatschap"},null,12,{"$f":"IF(ISBLANK(Categorieën!B180)=TRUE,\" \",Categorieën!B180)","v":" "},{"$f":"SUM(IF(ISBLANK(Categorieën!B180)=TRUE,100,IF(Categorieën!B180>Categorieën!$B$169:$B$198,1,0)))+ROW()/100","v":100.13},{"$f":"SMALL($AO$2:$AO$31,ROW()-1)","v":100.13},{"$f":"SUM(IF(AP13=$AO$2:$AO$31,$AM$2:$AM$31,0))","v":12},{"$f":"IF(ISBLANK(VLOOKUP($AQ13,$AM$2:$AN$31,2))=TRUE,\"\",VLOOKUP($AQ13,$AM$2:$AN$31,2))","v":" "}]
[null,null,null,13,{"$f":"IF(ISBLANK(Categorieën!B21)=TRUE,\" \",Categorieën!B21)","v":"persoonlijke gegevens: naam, telefoonnummer, e-mailadres"},{"$f":"SUM(IF(ISBLANK(Categorieën!B21)=TRUE,100,IF(Categorieën!B21>Categorieën!$B$9:$B$38,1,0)))+ROW()/100","v":27.14},{"$f":"SMALL($F$2:$F$31,ROW()-1)","v":23.13},{"$f":"SUM(IF(G14=$F$2:$F$31,$D$2:$D$31,0))","v":12},{"$f":"IF(ISBLANK(VLOOKUP($H14,$D$2:$E$31,2))=TRUE,\"\",VLOOKUP($H14,$D$2:$E$31,2))","v":"persoonlijke gegevens: naam, adres, telefoonnummer"},null,13,{"$f":"IF(ISBLANK(Categorieën!B53)=TRUE,\" \",Categorieën!B53)","v":"contacten bij de federatie"},{"$f":"SUM(IF(ISBLANK(Categorieën!B53)=TRUE,100,IF(Categorieën!B53>Categorieën!$B$41:$B$70,1,0)))+ROW()/100","v":19.14},{"$f":"SMALL($M$2:$M$31,ROW()-1)","v":28.07},{"$f":"SUM(IF(N14=$M$2:$M$31,$K$2:$K$31,0))","v":6},{"$f":"IF(ISBLANK(VLOOKUP($O14,$K$2:$L$31,2))=TRUE,\"\",VLOOKUP($O14,$K$2:$L$31,2))","v":"trainers (intern)"},null,13,{"$f":"IF(ISBLANK(Categorieën!B85)=TRUE,\" \",Categorieën!B85)","v":" "},{"$f":"SUM(IF(ISBLANK(Categorieën!B85)=TRUE,100,IF(Categorieën!B85>Categorieën!$B$73:$B$102,1,0)))+ROW()/100","v":100.14},{"$f":"SMALL($T$2:$T$31,ROW()-1)","v":100.14},{"$f":"SUM(IF(U14=$T$2:$T$31,$R$2:$R$31,0))","v":13},{"$f":"IF(ISBLANK(VLOOKUP($V14,$R$2:$S$31,2))=TRUE,\"\",VLOOKUP($V14,$R$2:$S$31,2))","v":" "},null,13,{"$f":"IF(ISBLANK(Categorieën!B117)=TRUE,\" \",Categorieën!B117)","v":" "},{"$f":"SUM(IF(ISBLANK(Categorieën!B117)=TRUE,100,IF(Categorieën!B117>Categorieën!$B$105:$B$134,1,0)))+ROW()/100","v":100.14},{"$f":"SMALL($AA$2:$AA$31,ROW()-1)","v":100.14},{"$f":"SUM(IF(AB14=$AA$2:$AA$31,$Y$2:$Y$31,0))","v":13},{"$f":"IF(ISBLANK(VLOOKUP($AC14,$Y$2:$Z$31,2))=TRUE,\"\",VLOOKUP($AC14,$Y$2:$Z$31,2))","v":" "},null,13,{"$f":"IF(ISBLANK(Categorieën!B149)=TRUE,\" \",Categorieën!B149)","v":"administratie deelnemers: deelnemers indelen in categoriën en groepen"},{"$f":"SUM(IF(ISBLANK(Categorieën!B149)=TRUE,100,IF(Categorieën!B149>Categorieën!$B$137:$B$166,1,0)))+ROW()/100","v":6.14},{"$f":"SMALL($AH$2:$AH$31,ROW()-1)","v":18.03},{"$f":"SUM(IF(AI14=$AH$2:$AH$31,$AF$2:$AF$31,0))","v":2},{"$f":"IF(ISBLANK(VLOOKUP($AJ14,$AF$2:$AG$31,2))=TRUE,\"\",VLOOKUP($AJ14,$AF$2:$AG$31,2))","v":"clubadministratie: verwerking gegevens i.f.v. verzekering"},null,13,{"$f":"IF(ISBLANK(Categorieën!B181)=TRUE,\" \",Categorieën!B181)","v":" "},{"$f":"SUM(IF(ISBLANK(Categorieën!B181)=TRUE,100,IF(Categorieën!B181>Categorieën!$B$169:$B$198,1,0)))+ROW()/100","v":100.14},{"$f":"SMALL($AO$2:$AO$31,ROW()-1)","v":100.14},{"$f":"SUM(IF(AP14=$AO$2:$AO$31,$AM$2:$AM$31,0))","v":13},{"$f":"IF(ISBLANK(VLOOKUP($AQ14,$AM$2:$AN$31,2))=TRUE,\"\",VLOOKUP($AQ14,$AM$2:$AN$31,2))","v":" "}]
[null,null,null,14,{"$f":"IF(ISBLANK(Categorieën!B22)=TRUE,\" \",Categorieën!B22)","v":"persoonlijke gegevens: naam, adres, telefoonnummer, leeftijd, geboortedatum, geslacht"},{"$f":"SUM(IF(ISBLANK(Categorieën!B22)=TRUE,100,IF(Categorieën!B22>Categorieën!$B$9:$B$38,1,0)))+ROW()/100","v":24.15},{"$f":"SMALL($F$2:$F$31,ROW()-1)","v":24.15},{"$f":"SUM(IF(G15=$F$2:$F$31,$D$2:$D$31,0))","v":14},{"$f":"IF(ISBLANK(VLOOKUP($H15,$D$2:$E$31,2))=TRUE,\"\",VLOOKUP($H15,$D$2:$E$31,2))","v":"persoonlijke gegevens: naam, adres, telefoonnummer, leeftijd, geboortedatum, geslacht"},null,14,{"$f":"IF(ISBLANK(Categorieën!B54)=TRUE,\" \",Categorieën!B54)","v":"contacten bij de (lokale) overheden"},{"$f":"SUM(IF(ISBLANK(Categorieën!B54)=TRUE,100,IF(Categorieën!B54>Categorieën!$B$41:$B$70,1,0)))+ROW()/100","v":18.149999999999999},{"$f":"SMALL($M$2:$M$31,ROW()-1)","v":29.1},{"$f":"SUM(IF(N15=$M$2:$M$31,$K$2:$K$31,0))","v":9},{"$f":"IF(ISBLANK(VLOOKUP($O15,$K$2:$L$31,2))=TRUE,\"\",VLOOKUP($O15,$K$2:$L$31,2))","v":"vrijwilligers"},null,14,{"$f":"IF(ISBLANK(Categorieën!B86)=TRUE,\" \",Categorieën!B86)","v":" "},{"$f":"SUM(IF(ISBLANK(Categorieën!B86)=TRUE,100,IF(Categorieën!B86>Categorieën!$B$73:$B$102,1,0)))+ROW()/100","v":100.15},{"$f":"SMALL($T$2:$T$31,ROW()-1)","v":100.15},{"$f":"SUM(IF(U15=$T$2:$T$31,$R$2:$R$31,0))","v":14},{"$f":"IF(ISBLANK(VLOOKUP($V15,$R$2:$S$31,2))=TRUE,\"\",VLOOKUP($V15,$R$2:$S$31,2))","v":" "},null,14,{"$f":"IF(ISBLANK(Categorieën!B118)=TRUE,\" \",Categorieën!B118)","v":" "},{"$f":"SUM(IF(ISBLANK(Categorieën!B118)=TRUE,100,IF(Categorieën!B118>Categorieën!$B$105:$B$134,1,0)))+ROW()/100","v":100.15},{"$f":"SMALL($AA$2:$AA$31,ROW()-1)","v":100.15},{"$f":"SUM(IF(AB15=$AA$2:$AA$31,$Y$2:$Y$31,0))","v":14},{"$f":"IF(ISBLANK(VLOOKUP($AC15,$Y$2:$Z$31,2))=TRUE,\"\",VLOOKUP($AC15,$Y$2:$Z$31,2))","v":" "},null,14,{"$f":"IF(ISBLANK(Categorieën!B150)=TRUE,\" \",Categorieën!B150)","v":"sportieve administratie: aansluiting federatie"},{"$f":"SUM(IF(ISBLANK(Categorieën!B150)=TRUE,100,IF(Categorieën!B150>Categorieën!$B$137:$B$166,1,0)))+ROW()/100","v":22.15},{"$f":"SMALL($AH$2:$AH$31,ROW()-1)","v":19.05},{"$f":"SUM(IF(AI15=$AH$2:$AH$31,$AF$2:$AF$31,0))","v":4},{"$f":"IF(ISBLANK(VLOOKUP($AJ15,$AF$2:$AG$31,2))=TRUE,\"\",VLOOKUP($AJ15,$AF$2:$AG$31,2))","v":"clubadministratie: verwerking gegevens i.f.v. vorming van leden"},null,14,{"$f":"IF(ISBLANK(Categorieën!B182)=TRUE,\" \",Categorieën!B182)","v":" "},{"$f":"SUM(IF(ISBLANK(Categorieën!B182)=TRUE,100,IF(Categorieën!B182>Categorieën!$B$169:$B$198,1,0)))+ROW()/100","v":100.15},{"$f":"SMALL($AO$2:$AO$31,ROW()-1)","v":100.15},{"$f":"SUM(IF(AP15=$AO$2:$AO$31,$AM$2:$AM$31,0))","v":14},{"$f":"IF(ISBLANK(VLOOKUP($AQ15,$AM$2:$AN$31,2))=TRUE,\"\",VLOOKUP($AQ15,$AM$2:$AN$31,2))","v":" "}]
[null,null,null,15,{"$f":"IF(ISBLANK(Categorieën!B23)=TRUE,\" \",Categorieën!B23)","v":"persoonlijke gegevens: gevolgde opleidingen, resultaten opleidingen, attesten van deelname"},{"$f":"SUM(IF(ISBLANK(Categorieën!B23)=TRUE,100,IF(Categorieën!B23>Categorieën!$B$9:$B$38,1,0)))+ROW()/100","v":18.16},{"$f":"SMALL($F$2:$F$31,ROW()-1)","v":25.11},{"$f":"SUM(IF(G16=$F$2:$F$31,$D$2:$D$31,0))","v":10},{"$f":"IF(ISBLANK(VLOOKUP($H16,$D$2:$E$31,2))=TRUE,\"\",VLOOKUP($H16,$D$2:$E$31,2))","v":"persoonlijke gegevens: naam, e-mailadres"},null,15,{"$f":"IF(ISBLANK(Categorieën!B55)=TRUE,\" \",Categorieën!B55)","v":" "},{"$f":"SUM(IF(ISBLANK(Categorieën!B55)=TRUE,100,IF(Categorieën!B55>Categorieën!$B$41:$B$70,1,0)))+ROW()/100","v":100.16},{"$f":"SMALL($M$2:$M$31,ROW()-1)","v":100.16},{"$f":"SUM(IF(N16=$M$2:$M$31,$K$2:$K$31,0))","v":15},{"$f":"IF(ISBLANK(VLOOKUP($O16,$K$2:$L$31,2))=TRUE,\"\",VLOOKUP($O16,$K$2:$L$31,2))","v":" "},null,15,{"$f":"IF(ISBLANK(Categorieën!B87)=TRUE,\" \",Categorieën!B87)","v":" "},{"$f":"SUM(IF(ISBLANK(Categorieën!B87)=TRUE,100,IF(Categorieën!B87>Categorieën!$B$73:$B$102,1,0)))+ROW()/100","v":100.16},{"$f":"SMALL($T$2:$T$31,ROW()-1)","v":100.16},{"$f":"SUM(IF(U16=$T$2:$T$31,$R$2:$R$31,0))","v":15},{"$f":"IF(ISBLANK(VLOOKUP($V16,$R$2:$S$31,2))=TRUE,\"\",VLOOKUP($V16,$R$2:$S$31,2))","v":" "},null,15,{"$f":"IF(ISBLANK(Categorieën!B119)=TRUE,\" \",Categorieën!B119)","v":" "},{"$f":"SUM(IF(ISBLANK(Categorieën!B119)=TRUE,100,IF(Categorieën!B119>Categorieën!$B$105:$B$134,1,0)))+ROW()/100","v":100.16},{"$f":"SMALL($AA$2:$AA$31,ROW()-1)","v":100.16},{"$f":"SUM(IF(AB16=$AA$2:$AA$31,$Y$2:$Y$31,0))","v":15},{"$f":"IF(ISBLANK(VLOOKUP($AC16,$Y$2:$Z$31,2))=TRUE,\"\",VLOOKUP($AC16,$Y$2:$Z$31,2))","v":" "},null,15,{"$f":"IF(ISBLANK(Categorieën!B151)=TRUE,\" \",Categorieën!B151)","v":"sportieve administratie: deelname aan competitie federatie"},{"$f":"SUM(IF(ISBLANK(Categorieën!B151)=TRUE,100,IF(Categorieën!B151>Categorieën!$B$137:$B$166,1,0)))+ROW()/100","v":23.16},{"$f":"SMALL($AH$2:$AH$31,ROW()-1)","v":20.100000000000001},{"$f":"SUM(IF(AI16=$AH$2:$AH$31,$AF$2:$AF$31,0))","v":9},{"$f":"IF(ISBLANK(VLOOKUP($AJ16,$AF$2:$AG$31,2))=TRUE,\"\",VLOOKUP($AJ16,$AF$2:$AG$31,2))","v":"communicatie met deelnemers aan organisaties"},null,15,{"$f":"IF(ISBLANK(Categorieën!B183)=TRUE,\" \",Categorieën!B183)","v":" "},{"$f":"SUM(IF(ISBLANK(Categorieën!B183)=TRUE,100,IF(Categorieën!B183>Categorieën!$B$169:$B$198,1,0)))+ROW()/100","v":100.16},{"$f":"SMALL($AO$2:$AO$31,ROW()-1)","v":100.16},{"$f":"SUM(IF(AP16=$AO$2:$AO$31,$AM$2:$AM$31,0))","v":15},{"$f":"IF(ISBLANK(VLOOKUP($AQ16,$AM$2:$AN$31,2))=TRUE,\"\",VLOOKUP($AQ16,$AM$2:$AN$31,2))","v":" "}]
[null,null,null,16,{"$f":"IF(ISBLANK(Categorieën!B24)=TRUE,\" \",Categorieën!B24)","v":"gevoelige gegevens: gegevens betreffende lichamelijke of psychische gezondheid (medische fiches): medisch dossier, medisch verslag, diagnose-informatie, behandeling, dieet, allergieën,handicap, andere bijzondere vereisten i.v.m. gezondheid "},{"$f":"SUM(IF(ISBLANK(Categorieën!B24)=TRUE,100,IF(Categorieën!B24>Categorieën!$B$9:$B$38,1,0)))+ROW()/100","v":15.17},{"$f":"SMALL($F$2:$F$31,ROW()-1)","v":26.12},{"$f":"SUM(IF(G17=$F$2:$F$31,$D$2:$D$31,0))","v":11},{"$f":"IF(ISBLANK(VLOOKUP($H17,$D$2:$E$31,2))=TRUE,\"\",VLOOKUP($H17,$D$2:$E$31,2))","v":"persoonlijke gegevens: naam, telefoonnummer"},null,16,{"$f":"IF(ISBLANK(Categorieën!B56)=TRUE,\" \",Categorieën!B56)","v":" "},{"$f":"SUM(IF(ISBLANK(Categorieën!B56)=TRUE,100,IF(Categorieën!B56>Categorieën!$B$41:$B$70,1,0)))+ROW()/100","v":100.17},{"$f":"SMALL($M$2:$M$31,ROW()-1)","v":100.17},{"$f":"SUM(IF(N17=$M$2:$M$31,$K$2:$K$31,0))","v":16},{"$f":"IF(ISBLANK(VLOOKUP($O17,$K$2:$L$31,2))=TRUE,\"\",VLOOKUP($O17,$K$2:$L$31,2))","v":" "},null,16,{"$f":"IF(ISBLANK(Categorieën!B88)=TRUE,\" \",Categorieën!B88)","v":" "},{"$f":"SUM(IF(ISBLANK(Categorieën!B88)=TRUE,100,IF(Categorieën!B88>Categorieën!$B$73:$B$102,1,0)))+ROW()/100","v":100.17},{"$f":"SMALL($T$2:$T$31,ROW()-1)","v":100.17},{"$f":"SUM(IF(U17=$T$2:$T$31,$R$2:$R$31,0))","v":16},{"$f":"IF(ISBLANK(VLOOKUP($V17,$R$2:$S$31,2))=TRUE,\"\",VLOOKUP($V17,$R$2:$S$31,2))","v":" "},null,16,{"$f":"IF(ISBLANK(Categorieën!B120)=TRUE,\" \",Categorieën!B120)","v":" "},{"$f":"SUM(IF(ISBLANK(Categorieën!B120)=TRUE,100,IF(Categorieën!B120>Categorieën!$B$105:$B$134,1,0)))+ROW()/100","v":100.17},{"$f":"SMALL($AA$2:$AA$31,ROW()-1)","v":100.17},{"$f":"SUM(IF(AB17=$AA$2:$AA$31,$Y$2:$Y$31,0))","v":16},{"$f":"IF(ISBLANK(VLOOKUP($AC17,$Y$2:$Z$31,2))=TRUE,\"\",VLOOKUP($AC17,$Y$2:$Z$31,2))","v":" "},null,16,{"$f":"IF(ISBLANK(Categorieën!B152)=TRUE,\" \",Categorieën!B152)","v":"sportieve administratie: doorgeven competitieresultaten federatie"},{"$f":"SUM(IF(ISBLANK(Categorieën!B152)=TRUE,100,IF(Categorieën!B152>Categorieën!$B$137:$B$166,1,0)))+ROW()/100","v":25.17},{"$f":"SMALL($AH$2:$AH$31,ROW()-1)","v":21.09},{"$f":"SUM(IF(AI17=$AH$2:$AH$31,$AF$2:$AF$31,0))","v":8},{"$f":"IF(ISBLANK(VLOOKUP($AJ17,$AF$2:$AG$31,2))=TRUE,\"\",VLOOKUP($AJ17,$AF$2:$AG$31,2))","v":"communicatie met leden (versturen van nieuwsbrieven, mails…)"},null,16,{"$f":"IF(ISBLANK(Categorieën!B184)=TRUE,\" \",Categorieën!B184)","v":" "},{"$f":"SUM(IF(ISBLANK(Categorieën!B184)=TRUE,100,IF(Categorieën!B184>Categorieën!$B$169:$B$198,1,0)))+ROW()/100","v":100.17},{"$f":"SMALL($AO$2:$AO$31,ROW()-1)","v":100.17},{"$f":"SUM(IF(AP17=$AO$2:$AO$31,$AM$2:$AM$31,0))","v":16},{"$f":"IF(ISBLANK(VLOOKUP($AQ17,$AM$2:$AN$31,2))=TRUE,\"\",VLOOKUP($AQ17,$AM$2:$AN$31,2))","v":" "}]
[null,null,null,17,{"$f":"IF(ISBLANK(Categorieën!B25)=TRUE,\" \",Categorieën!B25)","v":"competitiegegevens federatie: aansluitingsnummer, klassement"},{"$f":"SUM(IF(ISBLANK(Categorieën!B25)=TRUE,100,IF(Categorieën!B25>Categorieën!$B$9:$B$38,1,0)))+ROW()/100","v":12.18},{"$f":"SMALL($F$2:$F$31,ROW()-1)","v":27.14},{"$f":"SUM(IF(G18=$F$2:$F$31,$D$2:$D$31,0))","v":13},{"$f":"IF(ISBLANK(VLOOKUP($H18,$D$2:$E$31,2))=TRUE,\"\",VLOOKUP($H18,$D$2:$E$31,2))","v":"persoonlijke gegevens: naam, telefoonnummer, e-mailadres"},null,17,{"$f":"IF(ISBLANK(Categorieën!B57)=TRUE,\" \",Categorieën!B57)","v":" "},{"$f":"SUM(IF(ISBLANK(Categorieën!B57)=TRUE,100,IF(Categorieën!B57>Categorieën!$B$41:$B$70,1,0)))+ROW()/100","v":100.18},{"$f":"SMALL($M$2:$M$31,ROW()-1)","v":100.18},{"$f":"SUM(IF(N18=$M$2:$M$31,$K$2:$K$31,0))","v":17},{"$f":"IF(ISBLANK(VLOOKUP($O18,$K$2:$L$31,2))=TRUE,\"\",VLOOKUP($O18,$K$2:$L$31,2))","v":" "},null,17,{"$f":"IF(ISBLANK(Categorieën!B89)=TRUE,\" \",Categorieën!B89)","v":" "},{"$f":"SUM(IF(ISBLANK(Categorieën!B89)=TRUE,100,IF(Categorieën!B89>Categorieën!$B$73:$B$102,1,0)))+ROW()/100","v":100.18},{"$f":"SMALL($T$2:$T$31,ROW()-1)","v":100.18},{"$f":"SUM(IF(U18=$T$2:$T$31,$R$2:$R$31,0))","v":17},{"$f":"IF(ISBLANK(VLOOKUP($V18,$R$2:$S$31,2))=TRUE,\"\",VLOOKUP($V18,$R$2:$S$31,2))","v":" "},null,17,{"$f":"IF(ISBLANK(Categorieën!B121)=TRUE,\" \",Categorieën!B121)","v":" "},{"$f":"SUM(IF(ISBLANK(Categorieën!B121)=TRUE,100,IF(Categorieën!B121>Categorieën!$B$105:$B$134,1,0)))+ROW()/100","v":100.18},{"$f":"SMALL($AA$2:$AA$31,ROW()-1)","v":100.18},{"$f":"SUM(IF(AB18=$AA$2:$AA$31,$Y$2:$Y$31,0))","v":17},{"$f":"IF(ISBLANK(VLOOKUP($AC18,$Y$2:$Z$31,2))=TRUE,\"\",VLOOKUP($AC18,$Y$2:$Z$31,2))","v":" "},null,17,{"$f":"IF(ISBLANK(Categorieën!B153)=TRUE,\" \",Categorieën!B153)","v":"sportieve administratie: deelname aan tornooien federatie"},{"$f":"SUM(IF(ISBLANK(Categorieën!B153)=TRUE,100,IF(Categorieën!B153>Categorieën!$B$137:$B$166,1,0)))+ROW()/100","v":24.18},{"$f":"SMALL($AH$2:$AH$31,ROW()-1)","v":22.15},{"$f":"SUM(IF(AI18=$AH$2:$AH$31,$AF$2:$AF$31,0))","v":14},{"$f":"IF(ISBLANK(VLOOKUP($AJ18,$AF$2:$AG$31,2))=TRUE,\"\",VLOOKUP($AJ18,$AF$2:$AG$31,2))","v":"sportieve administratie: aansluiting federatie"},null,17,{"$f":"IF(ISBLANK(Categorieën!B185)=TRUE,\" \",Categorieën!B185)","v":" "},{"$f":"SUM(IF(ISBLANK(Categorieën!B185)=TRUE,100,IF(Categorieën!B185>Categorieën!$B$169:$B$198,1,0)))+ROW()/100","v":100.18},{"$f":"SMALL($AO$2:$AO$31,ROW()-1)","v":100.18},{"$f":"SUM(IF(AP18=$AO$2:$AO$31,$AM$2:$AM$31,0))","v":17},{"$f":"IF(ISBLANK(VLOOKUP($AQ18,$AM$2:$AN$31,2))=TRUE,\"\",VLOOKUP($AQ18,$AM$2:$AN$31,2))","v":" "}]
[null,null,null,18,{"$f":"IF(ISBLANK(Categorieën!B26)=TRUE,\" \",Categorieën!B26)","v":"competitiegegevens federatie: wedstrijdgegevens en -resultaten"},{"$f":"SUM(IF(ISBLANK(Categorieën!B26)=TRUE,100,IF(Categorieën!B26>Categorieën!$B$9:$B$38,1,0)))+ROW()/100","v":13.19},{"$f":"SMALL($F$2:$F$31,ROW()-1)","v":28.08},{"$f":"SUM(IF(G19=$F$2:$F$31,$D$2:$D$31,0))","v":7},{"$f":"IF(ISBLANK(VLOOKUP($H19,$D$2:$E$31,2))=TRUE,\"\",VLOOKUP($H19,$D$2:$E$31,2))","v":"persoonlijke gegevens: nationaliteit"},null,18,{"$f":"IF(ISBLANK(Categorieën!B58)=TRUE,\" \",Categorieën!B58)","v":" "},{"$f":"SUM(IF(ISBLANK(Categorieën!B58)=TRUE,100,IF(Categorieën!B58>Categorieën!$B$41:$B$70,1,0)))+ROW()/100","v":100.19},{"$f":"SMALL($M$2:$M$31,ROW()-1)","v":100.19},{"$f":"SUM(IF(N19=$M$2:$M$31,$K$2:$K$31,0))","v":18},{"$f":"IF(ISBLANK(VLOOKUP($O19,$K$2:$L$31,2))=TRUE,\"\",VLOOKUP($O19,$K$2:$L$31,2))","v":" "},null,18,{"$f":"IF(ISBLANK(Categorieën!B90)=TRUE,\" \",Categorieën!B90)","v":" "},{"$f":"SUM(IF(ISBLANK(Categorieën!B90)=TRUE,100,IF(Categorieën!B90>Categorieën!$B$73:$B$102,1,0)))+ROW()/100","v":100.19},{"$f":"SMALL($T$2:$T$31,ROW()-1)","v":100.19},{"$f":"SUM(IF(U19=$T$2:$T$31,$R$2:$R$31,0))","v":18},{"$f":"IF(ISBLANK(VLOOKUP($V19,$R$2:$S$31,2))=TRUE,\"\",VLOOKUP($V19,$R$2:$S$31,2))","v":" "},null,18,{"$f":"IF(ISBLANK(Categorieën!B122)=TRUE,\" \",Categorieën!B122)","v":" "},{"$f":"SUM(IF(ISBLANK(Categorieën!B122)=TRUE,100,IF(Categorieën!B122>Categorieën!$B$105:$B$134,1,0)))+ROW()/100","v":100.19},{"$f":"SMALL($AA$2:$AA$31,ROW()-1)","v":100.19},{"$f":"SUM(IF(AB19=$AA$2:$AA$31,$Y$2:$Y$31,0))","v":18},{"$f":"IF(ISBLANK(VLOOKUP($AC19,$Y$2:$Z$31,2))=TRUE,\"\",VLOOKUP($AC19,$Y$2:$Z$31,2))","v":" "},null,18,{"$f":"IF(ISBLANK(Categorieën!B154)=TRUE,\" \",Categorieën!B154)","v":"sportieve administratie: doorgeven tornooiresultaten federatie"},{"$f":"SUM(IF(ISBLANK(Categorieën!B154)=TRUE,100,IF(Categorieën!B154>Categorieën!$B$137:$B$166,1,0)))+ROW()/100","v":26.19},{"$f":"SMALL($AH$2:$AH$31,ROW()-1)","v":23.16},{"$f":"SUM(IF(AI19=$AH$2:$AH$31,$AF$2:$AF$31,0))","v":15},{"$f":"IF(ISBLANK(VLOOKUP($AJ19,$AF$2:$AG$31,2))=TRUE,\"\",VLOOKUP($AJ19,$AF$2:$AG$31,2))","v":"sportieve administratie: deelname aan competitie federatie"},null,18,{"$f":"IF(ISBLANK(Categorieën!B186)=TRUE,\" \",Categorieën!B186)","v":" "},{"$f":"SUM(IF(ISBLANK(Categorieën!B186)=TRUE,100,IF(Categorieën!B186>Categorieën!$B$169:$B$198,1,0)))+ROW()/100","v":100.19},{"$f":"SMALL($AO$2:$AO$31,ROW()-1)","v":100.19},{"$f":"SUM(IF(AP19=$AO$2:$AO$31,$AM$2:$AM$31,0))","v":18},{"$f":"IF(ISBLANK(VLOOKUP($AQ19,$AM$2:$AN$31,2))=TRUE,\"\",VLOOKUP($AQ19,$AM$2:$AN$31,2))","v":" "}]
[null,null,null,19,{"$f":"IF(ISBLANK(Categorieën!B27)=TRUE,\" \",Categorieën!B27)","v":"gegevens van derden: naam, telefoonnummer, e-mailadres van de ouders"},{"$f":"SUM(IF(ISBLANK(Categorieën!B27)=TRUE,100,IF(Categorieën!B27>Categorieën!$B$9:$B$38,1,0)))+ROW()/100","v":14.2},{"$f":"SMALL($F$2:$F$31,ROW()-1)","v":29.06},{"$f":"SUM(IF(G20=$F$2:$F$31,$D$2:$D$31,0))","v":5},{"$f":"IF(ISBLANK(VLOOKUP($H20,$D$2:$E$31,2))=TRUE,\"\",VLOOKUP($H20,$D$2:$E$31,2))","v":"persoonlijke gegevens: telefoonnummer"},null,19,{"$f":"IF(ISBLANK(Categorieën!B59)=TRUE,\" \",Categorieën!B59)","v":" "},{"$f":"SUM(IF(ISBLANK(Categorieën!B59)=TRUE,100,IF(Categorieën!B59>Categorieën!$B$41:$B$70,1,0)))+ROW()/100","v":100.2},{"$f":"SMALL($M$2:$M$31,ROW()-1)","v":100.2},{"$f":"SUM(IF(N20=$M$2:$M$31,$K$2:$K$31,0))","v":19},{"$f":"IF(ISBLANK(VLOOKUP($O20,$K$2:$L$31,2))=TRUE,\"\",VLOOKUP($O20,$K$2:$L$31,2))","v":" "},null,19,{"$f":"IF(ISBLANK(Categorieën!B91)=TRUE,\" \",Categorieën!B91)","v":" "},{"$f":"SUM(IF(ISBLANK(Categorieën!B91)=TRUE,100,IF(Categorieën!B91>Categorieën!$B$73:$B$102,1,0)))+ROW()/100","v":100.2},{"$f":"SMALL($T$2:$T$31,ROW()-1)","v":100.2},{"$f":"SUM(IF(U20=$T$2:$T$31,$R$2:$R$31,0))","v":19},{"$f":"IF(ISBLANK(VLOOKUP($V20,$R$2:$S$31,2))=TRUE,\"\",VLOOKUP($V20,$R$2:$S$31,2))","v":" "},null,19,{"$f":"IF(ISBLANK(Categorieën!B123)=TRUE,\" \",Categorieën!B123)","v":" "},{"$f":"SUM(IF(ISBLANK(Categorieën!B123)=TRUE,100,IF(Categorieën!B123>Categorieën!$B$105:$B$134,1,0)))+ROW()/100","v":100.2},{"$f":"SMALL($AA$2:$AA$31,ROW()-1)","v":100.2},{"$f":"SUM(IF(AB20=$AA$2:$AA$31,$Y$2:$Y$31,0))","v":19},{"$f":"IF(ISBLANK(VLOOKUP($AC20,$Y$2:$Z$31,2))=TRUE,\"\",VLOOKUP($AC20,$Y$2:$Z$31,2))","v":" "},null,19,{"$f":"IF(ISBLANK(Categorieën!B155)=TRUE,\" \",Categorieën!B155)","v":"sportieve administratie: inschrijven stages (met overnachting)"},{"$f":"SUM(IF(ISBLANK(Categorieën!B155)=TRUE,100,IF(Categorieën!B155>Categorieën!$B$137:$B$166,1,0)))+ROW()/100","v":27.2},{"$f":"SMALL($AH$2:$AH$31,ROW()-1)","v":24.18},{"$f":"SUM(IF(AI20=$AH$2:$AH$31,$AF$2:$AF$31,0))","v":17},{"$f":"IF(ISBLANK(VLOOKUP($AJ20,$AF$2:$AG$31,2))=TRUE,\"\",VLOOKUP($AJ20,$AF$2:$AG$31,2))","v":"sportieve administratie: deelname aan tornooien federatie"},null,19,{"$f":"IF(ISBLANK(Categorieën!B187)=TRUE,\" \",Categorieën!B187)","v":" "},{"$f":"SUM(IF(ISBLANK(Categorieën!B187)=TRUE,100,IF(Categorieën!B187>Categorieën!$B$169:$B$198,1,0)))+ROW()/100","v":100.2},{"$f":"SMALL($AO$2:$AO$31,ROW()-1)","v":100.2},{"$f":"SUM(IF(AP20=$AO$2:$AO$31,$AM$2:$AM$31,0))","v":19},{"$f":"IF(ISBLANK(VLOOKUP($AQ20,$AM$2:$AN$31,2))=TRUE,\"\",VLOOKUP($AQ20,$AM$2:$AN$31,2))","v":" "}]
[null,null,null,20,{"$f":"IF(ISBLANK(Categorieën!B28)=TRUE,\" \",Categorieën!B28)","v":" "},{"$f":"SUM(IF(ISBLANK(Categorieën!B28)=TRUE,100,IF(Categorieën!B28>Categorieën!$B$9:$B$38,1,0)))+ROW()/100","v":100.21},{"$f":"SMALL($F$2:$F$31,ROW()-1)","v":100.21},{"$f":"SUM(IF(G21=$F$2:$F$31,$D$2:$D$31,0))","v":20},{"$f":"IF(ISBLANK(VLOOKUP($H21,$D$2:$E$31,2))=TRUE,\"\",VLOOKUP($H21,$D$2:$E$31,2))","v":" "},null,20,{"$f":"IF(ISBLANK(Categorieën!B60)=TRUE,\" \",Categorieën!B60)","v":" "},{"$f":"SUM(IF(ISBLANK(Categorieën!B60)=TRUE,100,IF(Categorieën!B60>Categorieën!$B$41:$B$70,1,0)))+ROW()/100","v":100.21},{"$f":"SMALL($M$2:$M$31,ROW()-1)","v":100.21},{"$f":"SUM(IF(N21=$M$2:$M$31,$K$2:$K$31,0))","v":20},{"$f":"IF(ISBLANK(VLOOKUP($O21,$K$2:$L$31,2))=TRUE,\"\",VLOOKUP($O21,$K$2:$L$31,2))","v":" "},null,20,{"$f":"IF(ISBLANK(Categorieën!B92)=TRUE,\" \",Categorieën!B92)","v":" "},{"$f":"SUM(IF(ISBLANK(Categorieën!B92)=TRUE,100,IF(Categorieën!B92>Categorieën!$B$73:$B$102,1,0)))+ROW()/100","v":100.21},{"$f":"SMALL($T$2:$T$31,ROW()-1)","v":100.21},{"$f":"SUM(IF(U21=$T$2:$T$31,$R$2:$R$31,0))","v":20},{"$f":"IF(ISBLANK(VLOOKUP($V21,$R$2:$S$31,2))=TRUE,\"\",VLOOKUP($V21,$R$2:$S$31,2))","v":" "},null,20,{"$f":"IF(ISBLANK(Categorieën!B124)=TRUE,\" \",Categorieën!B124)","v":" "},{"$f":"SUM(IF(ISBLANK(Categorieën!B124)=TRUE,100,IF(Categorieën!B124>Categorieën!$B$105:$B$134,1,0)))+ROW()/100","v":100.21},{"$f":"SMALL($AA$2:$AA$31,ROW()-1)","v":100.21},{"$f":"SUM(IF(AB21=$AA$2:$AA$31,$Y$2:$Y$31,0))","v":20},{"$f":"IF(ISBLANK(VLOOKUP($AC21,$Y$2:$Z$31,2))=TRUE,\"\",VLOOKUP($AC21,$Y$2:$Z$31,2))","v":" "},null,20,{"$f":"IF(ISBLANK(Categorieën!B156)=TRUE,\" \",Categorieën!B156)","v":"sportieve administratie: inschrijven stages (zonder overnachting)"},{"$f":"SUM(IF(ISBLANK(Categorieën!B156)=TRUE,100,IF(Categorieën!B156>Categorieën!$B$137:$B$166,1,0)))+ROW()/100","v":28.21},{"$f":"SMALL($AH$2:$AH$31,ROW()-1)","v":25.17},{"$f":"SUM(IF(AI21=$AH$2:$AH$31,$AF$2:$AF$31,0))","v":16},{"$f":"IF(ISBLANK(VLOOKUP($AJ21,$AF$2:$AG$31,2))=TRUE,\"\",VLOOKUP($AJ21,$AF$2:$AG$31,2))","v":"sportieve administratie: doorgeven competitieresultaten federatie"},null,20,{"$f":"IF(ISBLANK(Categorieën!B188)=TRUE,\" \",Categorieën!B188)","v":" "},{"$f":"SUM(IF(ISBLANK(Categorieën!B188)=TRUE,100,IF(Categorieën!B188>Categorieën!$B$169:$B$198,1,0)))+ROW()/100","v":100.21},{"$f":"SMALL($AO$2:$AO$31,ROW()-1)","v":100.21},{"$f":"SUM(IF(AP21=$AO$2:$AO$31,$AM$2:$AM$31,0))","v":20},{"$f":"IF(ISBLANK(VLOOKUP($AQ21,$AM$2:$AN$31,2))=TRUE,\"\",VLOOKUP($AQ21,$AM$2:$AN$31,2))","v":" "}]
[null,null,null,21,{"$f":"IF(ISBLANK(Categorieën!B29)=TRUE,\" \",Categorieën!B29)","v":" "},{"$f":"SUM(IF(ISBLANK(Categorieën!B29)=TRUE,100,IF(Categorieën!B29>Categorieën!$B$9:$B$38,1,0)))+ROW()/100","v":100.22},{"$f":"SMALL($F$2:$F$31,ROW()-1)","v":100.22},{"$f":"SUM(IF(G22=$F$2:$F$31,$D$2:$D$31,0))","v":21},{"$f":"IF(ISBLANK(VLOOKUP($H22,$D$2:$E$31,2))=TRUE,\"\",VLOOKUP($H22,$D$2:$E$31,2))","v":" "},null,21,{"$f":"IF(ISBLANK(Categorieën!B61)=TRUE,\" \",Categorieën!B61)","v":" "},{"$f":"SUM(IF(ISBLANK(Categorieën!B61)=TRUE,100,IF(Categorieën!B61>Categorieën!$B$41:$B$70,1,0)))+ROW()/100","v":100.22},{"$f":"SMALL($M$2:$M$31,ROW()-1)","v":100.22},{"$f":"SUM(IF(N22=$M$2:$M$31,$K$2:$K$31,0))","v":21},{"$f":"IF(ISBLANK(VLOOKUP($O22,$K$2:$L$31,2))=TRUE,\"\",VLOOKUP($O22,$K$2:$L$31,2))","v":" "},null,21,{"$f":"IF(ISBLANK(Categorieën!B93)=TRUE,\" \",Categorieën!B93)","v":" "},{"$f":"SUM(IF(ISBLANK(Categorieën!B93)=TRUE,100,IF(Categorieën!B93>Categorieën!$B$73:$B$102,1,0)))+ROW()/100","v":100.22},{"$f":"SMALL($T$2:$T$31,ROW()-1)","v":100.22},{"$f":"SUM(IF(U22=$T$2:$T$31,$R$2:$R$31,0))","v":21},{"$f":"IF(ISBLANK(VLOOKUP($V22,$R$2:$S$31,2))=TRUE,\"\",VLOOKUP($V22,$R$2:$S$31,2))","v":" "},null,21,{"$f":"IF(ISBLANK(Categorieën!B125)=TRUE,\" \",Categorieën!B125)","v":" "},{"$f":"SUM(IF(ISBLANK(Categorieën!B125)=TRUE,100,IF(Categorieën!B125>Categorieën!$B$105:$B$134,1,0)))+ROW()/100","v":100.22},{"$f":"SMALL($AA$2:$AA$31,ROW()-1)","v":100.22},{"$f":"SUM(IF(AB22=$AA$2:$AA$31,$Y$2:$Y$31,0))","v":21},{"$f":"IF(ISBLANK(VLOOKUP($AC22,$Y$2:$Z$31,2))=TRUE,\"\",VLOOKUP($AC22,$Y$2:$Z$31,2))","v":" "},null,21,{"$f":"IF(ISBLANK(Categorieën!B157)=TRUE,\" \",Categorieën!B157)","v":"sportieve administratie: organisatie recreatief sportevenement"},{"$f":"SUM(IF(ISBLANK(Categorieën!B157)=TRUE,100,IF(Categorieën!B157>Categorieën!$B$137:$B$166,1,0)))+ROW()/100","v":29.22},{"$f":"SMALL($AH$2:$AH$31,ROW()-1)","v":26.19},{"$f":"SUM(IF(AI22=$AH$2:$AH$31,$AF$2:$AF$31,0))","v":18},{"$f":"IF(ISBLANK(VLOOKUP($AJ22,$AF$2:$AG$31,2))=TRUE,\"\",VLOOKUP($AJ22,$AF$2:$AG$31,2))","v":"sportieve administratie: doorgeven tornooiresultaten federatie"},null,21,{"$f":"IF(ISBLANK(Categorieën!B189)=TRUE,\" \",Categorieën!B189)","v":" "},{"$f":"SUM(IF(ISBLANK(Categorieën!B189)=TRUE,100,IF(Categorieën!B189>Categorieën!$B$169:$B$198,1,0)))+ROW()/100","v":100.22},{"$f":"SMALL($AO$2:$AO$31,ROW()-1)","v":100.22},{"$f":"SUM(IF(AP22=$AO$2:$AO$31,$AM$2:$AM$31,0))","v":21},{"$f":"IF(ISBLANK(VLOOKUP($AQ22,$AM$2:$AN$31,2))=TRUE,\"\",VLOOKUP($AQ22,$AM$2:$AN$31,2))","v":" "}]
[null,null,null,22,{"$f":"IF(ISBLANK(Categorieën!B30)=TRUE,\" \",Categorieën!B30)","v":" "},{"$f":"SUM(IF(ISBLANK(Categorieën!B30)=TRUE,100,IF(Categorieën!B30>Categorieën!$B$9:$B$38,1,0)))+ROW()/100","v":100.23},{"$f":"SMALL($F$2:$F$31,ROW()-1)","v":100.23},{"$f":"SUM(IF(G23=$F$2:$F$31,$D$2:$D$31,0))","v":22},{"$f":"IF(ISBLANK(VLOOKUP($H23,$D$2:$E$31,2))=TRUE,\"\",VLOOKUP($H23,$D$2:$E$31,2))","v":" "},null,22,{"$f":"IF(ISBLANK(Categorieën!B62)=TRUE,\" \",Categorieën!B62)","v":" "},{"$f":"SUM(IF(ISBLANK(Categorieën!B62)=TRUE,100,IF(Categorieën!B62>Categorieën!$B$41:$B$70,1,0)))+ROW()/100","v":100.23},{"$f":"SMALL($M$2:$M$31,ROW()-1)","v":100.23},{"$f":"SUM(IF(N23=$M$2:$M$31,$K$2:$K$31,0))","v":22},{"$f":"IF(ISBLANK(VLOOKUP($O23,$K$2:$L$31,2))=TRUE,\"\",VLOOKUP($O23,$K$2:$L$31,2))","v":" "},null,22,{"$f":"IF(ISBLANK(Categorieën!B94)=TRUE,\" \",Categorieën!B94)","v":" "},{"$f":"SUM(IF(ISBLANK(Categorieën!B94)=TRUE,100,IF(Categorieën!B94>Categorieën!$B$73:$B$102,1,0)))+ROW()/100","v":100.23},{"$f":"SMALL($T$2:$T$31,ROW()-1)","v":100.23},{"$f":"SUM(IF(U23=$T$2:$T$31,$R$2:$R$31,0))","v":22},{"$f":"IF(ISBLANK(VLOOKUP($V23,$R$2:$S$31,2))=TRUE,\"\",VLOOKUP($V23,$R$2:$S$31,2))","v":" "},null,22,{"$f":"IF(ISBLANK(Categorieën!B126)=TRUE,\" \",Categorieën!B126)","v":" "},{"$f":"SUM(IF(ISBLANK(Categorieën!B126)=TRUE,100,IF(Categorieën!B126>Categorieën!$B$105:$B$134,1,0)))+ROW()/100","v":100.23},{"$f":"SMALL($AA$2:$AA$31,ROW()-1)","v":100.23},{"$f":"SUM(IF(AB23=$AA$2:$AA$31,$Y$2:$Y$31,0))","v":22},{"$f":"IF(ISBLANK(VLOOKUP($AC23,$Y$2:$Z$31,2))=TRUE,\"\",VLOOKUP($AC23,$Y$2:$Z$31,2))","v":" "},null,22,{"$f":"IF(ISBLANK(Categorieën!B158)=TRUE,\" \",Categorieën!B158)","v":"beheren social media - sfeerfoto's"},{"$f":"SUM(IF(ISBLANK(Categorieën!B158)=TRUE,100,IF(Categorieën!B158>Categorieën!$B$137:$B$166,1,0)))+ROW()/100","v":12.23},{"$f":"SMALL($AH$2:$AH$31,ROW()-1)","v":27.2},{"$f":"SUM(IF(AI23=$AH$2:$AH$31,$AF$2:$AF$31,0))","v":19},{"$f":"IF(ISBLANK(VLOOKUP($AJ23,$AF$2:$AG$31,2))=TRUE,\"\",VLOOKUP($AJ23,$AF$2:$AG$31,2))","v":"sportieve administratie: inschrijven stages (met overnachting)"},null,22,{"$f":"IF(ISBLANK(Categorieën!B190)=TRUE,\" \",Categorieën!B190)","v":" "},{"$f":"SUM(IF(ISBLANK(Categorieën!B190)=TRUE,100,IF(Categorieën!B190>Categorieën!$B$169:$B$198,1,0)))+ROW()/100","v":100.23},{"$f":"SMALL($AO$2:$AO$31,ROW()-1)","v":100.23},{"$f":"SUM(IF(AP23=$AO$2:$AO$31,$AM$2:$AM$31,0))","v":22},{"$f":"IF(ISBLANK(VLOOKUP($AQ23,$AM$2:$AN$31,2))=TRUE,\"\",VLOOKUP($AQ23,$AM$2:$AN$31,2))","v":" "}]
[null,null,null,23,{"$f":"IF(ISBLANK(Categorieën!B31)=TRUE,\" \",Categorieën!B31)","v":" "},{"$f":"SUM(IF(ISBLANK(Categorieën!B31)=TRUE,100,IF(Categorieën!B31>Categorieën!$B$9:$B$38,1,0)))+ROW()/100","v":100.24},{"$f":"SMALL($F$2:$F$31,ROW()-1)","v":100.24},{"$f":"SUM(IF(G24=$F$2:$F$31,$D$2:$D$31,0))","v":23},{"$f":"IF(ISBLANK(VLOOKUP($H24,$D$2:$E$31,2))=TRUE,\"\",VLOOKUP($H24,$D$2:$E$31,2))","v":" "},null,23,{"$f":"IF(ISBLANK(Categorieën!B63)=TRUE,\" \",Categorieën!B63)","v":" "},{"$f":"SUM(IF(ISBLANK(Categorieën!B63)=TRUE,100,IF(Categorieën!B63>Categorieën!$B$41:$B$70,1,0)))+ROW()/100","v":100.24},{"$f":"SMALL($M$2:$M$31,ROW()-1)","v":100.24},{"$f":"SUM(IF(N24=$M$2:$M$31,$K$2:$K$31,0))","v":23},{"$f":"IF(ISBLANK(VLOOKUP($O24,$K$2:$L$31,2))=TRUE,\"\",VLOOKUP($O24,$K$2:$L$31,2))","v":" "},null,23,{"$f":"IF(ISBLANK(Categorieën!B95)=TRUE,\" \",Categorieën!B95)","v":" "},{"$f":"SUM(IF(ISBLANK(Categorieën!B95)=TRUE,100,IF(Categorieën!B95>Categorieën!$B$73:$B$102,1,0)))+ROW()/100","v":100.24},{"$f":"SMALL($T$2:$T$31,ROW()-1)","v":100.24},{"$f":"SUM(IF(U24=$T$2:$T$31,$R$2:$R$31,0))","v":23},{"$f":"IF(ISBLANK(VLOOKUP($V24,$R$2:$S$31,2))=TRUE,\"\",VLOOKUP($V24,$R$2:$S$31,2))","v":" "},null,23,{"$f":"IF(ISBLANK(Categorieën!B127)=TRUE,\" \",Categorieën!B127)","v":" "},{"$f":"SUM(IF(ISBLANK(Categorieën!B127)=TRUE,100,IF(Categorieën!B127>Categorieën!$B$105:$B$134,1,0)))+ROW()/100","v":100.24},{"$f":"SMALL($AA$2:$AA$31,ROW()-1)","v":100.24},{"$f":"SUM(IF(AB24=$AA$2:$AA$31,$Y$2:$Y$31,0))","v":23},{"$f":"IF(ISBLANK(VLOOKUP($AC24,$Y$2:$Z$31,2))=TRUE,\"\",VLOOKUP($AC24,$Y$2:$Z$31,2))","v":" "},null,23,{"$f":"IF(ISBLANK(Categorieën!B159)=TRUE,\" \",Categorieën!B159)","v":"beheren social media - gerichte foto's"},{"$f":"SUM(IF(ISBLANK(Categorieën!B159)=TRUE,100,IF(Categorieën!B159>Categorieën!$B$137:$B$166,1,0)))+ROW()/100","v":11.24},{"$f":"SMALL($AH$2:$AH$31,ROW()-1)","v":28.21},{"$f":"SUM(IF(AI24=$AH$2:$AH$31,$AF$2:$AF$31,0))","v":20},{"$f":"IF(ISBLANK(VLOOKUP($AJ24,$AF$2:$AG$31,2))=TRUE,\"\",VLOOKUP($AJ24,$AF$2:$AG$31,2))","v":"sportieve administratie: inschrijven stages (zonder overnachting)"},null,23,{"$f":"IF(ISBLANK(Categorieën!B191)=TRUE,\" \",Categorieën!B191)","v":" "},{"$f":"SUM(IF(ISBLANK(Categorieën!B191)=TRUE,100,IF(Categorieën!B191>Categorieën!$B$169:$B$198,1,0)))+ROW()/100","v":100.24},{"$f":"SMALL($AO$2:$AO$31,ROW()-1)","v":100.24},{"$f":"SUM(IF(AP24=$AO$2:$AO$31,$AM$2:$AM$31,0))","v":23},{"$f":"IF(ISBLANK(VLOOKUP($AQ24,$AM$2:$AN$31,2))=TRUE,\"\",VLOOKUP($AQ24,$AM$2:$AN$31,2))","v":" "}]
[null,null,null,24,{"$f":"IF(ISBLANK(Categorieën!B32)=TRUE,\" \",Categorieën!B32)","v":" "},{"$f":"SUM(IF(ISBLANK(Categorieën!B32)=TRUE,100,IF(Categorieën!B32>Categorieën!$B$9:$B$38,1,0)))+ROW()/100","v":100.25},{"$f":"SMALL($F$2:$F$31,ROW()-1)","v":100.25},{"$f":"SUM(IF(G25=$F$2:$F$31,$D$2:$D$31,0))","v":24},{"$f":"IF(ISBLANK(VLOOKUP($H25,$D$2:$E$31,2))=TRUE,\"\",VLOOKUP($H25,$D$2:$E$31,2))","v":" "},null,24,{"$f":"IF(ISBLANK(Categorieën!B64)=TRUE,\" \",Categorieën!B64)","v":" "},{"$f":"SUM(IF(ISBLANK(Categorieën!B64)=TRUE,100,IF(Categorieën!B64>Categorieën!$B$41:$B$70,1,0)))+ROW()/100","v":100.25},{"$f":"SMALL($M$2:$M$31,ROW()-1)","v":100.25},{"$f":"SUM(IF(N25=$M$2:$M$31,$K$2:$K$31,0))","v":24},{"$f":"IF(ISBLANK(VLOOKUP($O25,$K$2:$L$31,2))=TRUE,\"\",VLOOKUP($O25,$K$2:$L$31,2))","v":" "},null,24,{"$f":"IF(ISBLANK(Categorieën!B96)=TRUE,\" \",Categorieën!B96)","v":" "},{"$f":"SUM(IF(ISBLANK(Categorieën!B96)=TRUE,100,IF(Categorieën!B96>Categorieën!$B$73:$B$102,1,0)))+ROW()/100","v":100.25},{"$f":"SMALL($T$2:$T$31,ROW()-1)","v":100.25},{"$f":"SUM(IF(U25=$T$2:$T$31,$R$2:$R$31,0))","v":24},{"$f":"IF(ISBLANK(VLOOKUP($V25,$R$2:$S$31,2))=TRUE,\"\",VLOOKUP($V25,$R$2:$S$31,2))","v":" "},null,24,{"$f":"IF(ISBLANK(Categorieën!B128)=TRUE,\" \",Categorieën!B128)","v":" "},{"$f":"SUM(IF(ISBLANK(Categorieën!B128)=TRUE,100,IF(Categorieën!B128>Categorieën!$B$105:$B$134,1,0)))+ROW()/100","v":100.25},{"$f":"SMALL($AA$2:$AA$31,ROW()-1)","v":100.25},{"$f":"SUM(IF(AB25=$AA$2:$AA$31,$Y$2:$Y$31,0))","v":24},{"$f":"IF(ISBLANK(VLOOKUP($AC25,$Y$2:$Z$31,2))=TRUE,\"\",VLOOKUP($AC25,$Y$2:$Z$31,2))","v":" "},null,24,{"$f":"IF(ISBLANK(Categorieën!B160)=TRUE,\" \",Categorieën!B160)","v":"beheren clubwebsite"},{"$f":"SUM(IF(ISBLANK(Categorieën!B160)=TRUE,100,IF(Categorieën!B160>Categorieën!$B$137:$B$166,1,0)))+ROW()/100","v":10.25},{"$f":"SMALL($AH$2:$AH$31,ROW()-1)","v":29.22},{"$f":"SUM(IF(AI25=$AH$2:$AH$31,$AF$2:$AF$31,0))","v":21},{"$f":"IF(ISBLANK(VLOOKUP($AJ25,$AF$2:$AG$31,2))=TRUE,\"\",VLOOKUP($AJ25,$AF$2:$AG$31,2))","v":"sportieve administratie: organisatie recreatief sportevenement"},null,24,{"$f":"IF(ISBLANK(Categorieën!B192)=TRUE,\" \",Categorieën!B192)","v":" "},{"$f":"SUM(IF(ISBLANK(Categorieën!B192)=TRUE,100,IF(Categorieën!B192>Categorieën!$B$169:$B$198,1,0)))+ROW()/100","v":100.25},{"$f":"SMALL($AO$2:$AO$31,ROW()-1)","v":100.25},{"$f":"SUM(IF(AP25=$AO$2:$AO$31,$AM$2:$AM$31,0))","v":24},{"$f":"IF(ISBLANK(VLOOKUP($AQ25,$AM$2:$AN$31,2))=TRUE,\"\",VLOOKUP($AQ25,$AM$2:$AN$31,2))","v":" "}]
[null,null,null,25,{"$f":"IF(ISBLANK(Categorieën!B33)=TRUE,\" \",Categorieën!B33)","v":" "},{"$f":"SUM(IF(ISBLANK(Categorieën!B33)=TRUE,100,IF(Categorieën!B33>Categorieën!$B$9:$B$38,1,0)))+ROW()/100","v":100.26},{"$f":"SMALL($F$2:$F$31,ROW()-1)","v":100.26},{"$f":"SUM(IF(G26=$F$2:$F$31,$D$2:$D$31,0))","v":25},{"$f":"IF(ISBLANK(VLOOKUP($H26,$D$2:$E$31,2))=TRUE,\"\",VLOOKUP($H26,$D$2:$E$31,2))","v":" "},null,25,{"$f":"IF(ISBLANK(Categorieën!B65)=TRUE,\" \",Categorieën!B65)","v":" "},{"$f":"SUM(IF(ISBLANK(Categorieën!B65)=TRUE,100,IF(Categorieën!B65>Categorieën!$B$41:$B$70,1,0)))+ROW()/100","v":100.26},{"$f":"SMALL($M$2:$M$31,ROW()-1)","v":100.26},{"$f":"SUM(IF(N26=$M$2:$M$31,$K$2:$K$31,0))","v":25},{"$f":"IF(ISBLANK(VLOOKUP($O26,$K$2:$L$31,2))=TRUE,\"\",VLOOKUP($O26,$K$2:$L$31,2))","v":" "},null,25,{"$f":"IF(ISBLANK(Categorieën!B97)=TRUE,\" \",Categorieën!B97)","v":" "},{"$f":"SUM(IF(ISBLANK(Categorieën!B97)=TRUE,100,IF(Categorieën!B97>Categorieën!$B$73:$B$102,1,0)))+ROW()/100","v":100.26},{"$f":"SMALL($T$2:$T$31,ROW()-1)","v":100.26},{"$f":"SUM(IF(U26=$T$2:$T$31,$R$2:$R$31,0))","v":25},{"$f":"IF(ISBLANK(VLOOKUP($V26,$R$2:$S$31,2))=TRUE,\"\",VLOOKUP($V26,$R$2:$S$31,2))","v":" "},null,25,{"$f":"IF(ISBLANK(Categorieën!B129)=TRUE,\" \",Categorieën!B129)","v":" "},{"$f":"SUM(IF(ISBLANK(Categorieën!B129)=TRUE,100,IF(Categorieën!B129>Categorieën!$B$105:$B$134,1,0)))+ROW()/100","v":100.26},{"$f":"SMALL($AA$2:$AA$31,ROW()-1)","v":100.26},{"$f":"SUM(IF(AB26=$AA$2:$AA$31,$Y$2:$Y$31,0))","v":25},{"$f":"IF(ISBLANK(VLOOKUP($AC26,$Y$2:$Z$31,2))=TRUE,\"\",VLOOKUP($AC26,$Y$2:$Z$31,2))","v":" "},null,25,{"$f":"IF(ISBLANK(Categorieën!B161)=TRUE,\" \",Categorieën!B161)","v":" "},{"$f":"SUM(IF(ISBLANK(Categorieën!B161)=TRUE,100,IF(Categorieën!B161>Categorieën!$B$137:$B$166,1,0)))+ROW()/100","v":100.26},{"$f":"SMALL($AH$2:$AH$31,ROW()-1)","v":100.26},{"$f":"SUM(IF(AI26=$AH$2:$AH$31,$AF$2:$AF$31,0))","v":25},{"$f":"IF(ISBLANK(VLOOKUP($AJ26,$AF$2:$AG$31,2))=TRUE,\"\",VLOOKUP($AJ26,$AF$2:$AG$31,2))","v":" "},null,25,{"$f":"IF(ISBLANK(Categorieën!B193)=TRUE,\" \",Categorieën!B193)","v":" "},{"$f":"SUM(IF(ISBLANK(Categorieën!B193)=TRUE,100,IF(Categorieën!B193>Categorieën!$B$169:$B$198,1,0)))+ROW()/100","v":100.26},{"$f":"SMALL($AO$2:$AO$31,ROW()-1)","v":100.26},{"$f":"SUM(IF(AP26=$AO$2:$AO$31,$AM$2:$AM$31,0))","v":25},{"$f":"IF(ISBLANK(VLOOKUP($AQ26,$AM$2:$AN$31,2))=TRUE,\"\",VLOOKUP($AQ26,$AM$2:$AN$31,2))","v":" "}]
[null,null,null,26,{"$f":"IF(ISBLANK(Categorieën!B34)=TRUE,\" \",Categorieën!B34)","v":" "},{"$f":"SUM(IF(ISBLANK(Categorieën!B34)=TRUE,100,IF(Categorieën!B34>Categorieën!$B$9:$B$38,1,0)))+ROW()/100","v":100.27},{"$f":"SMALL($F$2:$F$31,ROW()-1)","v":100.27},{"$f":"SUM(IF(G27=$F$2:$F$31,$D$2:$D$31,0))","v":26},{"$f":"IF(ISBLANK(VLOOKUP($H27,$D$2:$E$31,2))=TRUE,\"\",VLOOKUP($H27,$D$2:$E$31,2))","v":" "},null,26,{"$f":"IF(ISBLANK(Categorieën!B66)=TRUE,\" \",Categorieën!B66)","v":" "},{"$f":"SUM(IF(ISBLANK(Categorieën!B66)=TRUE,100,IF(Categorieën!B66>Categorieën!$B$41:$B$70,1,0)))+ROW()/100","v":100.27},{"$f":"SMALL($M$2:$M$31,ROW()-1)","v":100.27},{"$f":"SUM(IF(N27=$M$2:$M$31,$K$2:$K$31,0))","v":26},{"$f":"IF(ISBLANK(VLOOKUP($O27,$K$2:$L$31,2))=TRUE,\"\",VLOOKUP($O27,$K$2:$L$31,2))","v":" "},null,26,{"$f":"IF(ISBLANK(Categorieën!B98)=TRUE,\" \",Categorieën!B98)","v":" "},{"$f":"SUM(IF(ISBLANK(Categorieën!B98)=TRUE,100,IF(Categorieën!B98>Categorieën!$B$73:$B$102,1,0)))+ROW()/100","v":100.27},{"$f":"SMALL($T$2:$T$31,ROW()-1)","v":100.27},{"$f":"SUM(IF(U27=$T$2:$T$31,$R$2:$R$31,0))","v":26},{"$f":"IF(ISBLANK(VLOOKUP($V27,$R$2:$S$31,2))=TRUE,\"\",VLOOKUP($V27,$R$2:$S$31,2))","v":" "},null,26,{"$f":"IF(ISBLANK(Categorieën!B130)=TRUE,\" \",Categorieën!B130)","v":" "},{"$f":"SUM(IF(ISBLANK(Categorieën!B130)=TRUE,100,IF(Categorieën!B130>Categorieën!$B$105:$B$134,1,0)))+ROW()/100","v":100.27},{"$f":"SMALL($AA$2:$AA$31,ROW()-1)","v":100.27},{"$f":"SUM(IF(AB27=$AA$2:$AA$31,$Y$2:$Y$31,0))","v":26},{"$f":"IF(ISBLANK(VLOOKUP($AC27,$Y$2:$Z$31,2))=TRUE,\"\",VLOOKUP($AC27,$Y$2:$Z$31,2))","v":" "},null,26,{"$f":"IF(ISBLANK(Categorieën!B162)=TRUE,\" \",Categorieën!B162)","v":" "},{"$f":"SUM(IF(ISBLANK(Categorieën!B162)=TRUE,100,IF(Categorieën!B162>Categorieën!$B$137:$B$166,1,0)))+ROW()/100","v":100.27},{"$f":"SMALL($AH$2:$AH$31,ROW()-1)","v":100.27},{"$f":"SUM(IF(AI27=$AH$2:$AH$31,$AF$2:$AF$31,0))","v":26},{"$f":"IF(ISBLANK(VLOOKUP($AJ27,$AF$2:$AG$31,2))=TRUE,\"\",VLOOKUP($AJ27,$AF$2:$AG$31,2))","v":" "},null,26,{"$f":"IF(ISBLANK(Categorieën!B194)=TRUE,\" \",Categorieën!B194)","v":" "},{"$f":"SUM(IF(ISBLANK(Categorieën!B194)=TRUE,100,IF(Categorieën!B194>Categorieën!$B$169:$B$198,1,0)))+ROW()/100","v":100.27},{"$f":"SMALL($AO$2:$AO$31,ROW()-1)","v":100.27},{"$f":"SUM(IF(AP27=$AO$2:$AO$31,$AM$2:$AM$31,0))","v":26},{"$f":"IF(ISBLANK(VLOOKUP($AQ27,$AM$2:$AN$31,2))=TRUE,\"\",VLOOKUP($AQ27,$AM$2:$AN$31,2))","v":" "}]
[null,null,null,27,{"$f":"IF(ISBLANK(Categorieën!B35)=TRUE,\" \",Categorieën!B35)","v":" "},{"$f":"SUM(IF(ISBLANK(Categorieën!B35)=TRUE,100,IF(Categorieën!B35>Categorieën!$B$9:$B$38,1,0)))+ROW()/100","v":100.28},{"$f":"SMALL($F$2:$F$31,ROW()-1)","v":100.28},{"$f":"SUM(IF(G28=$F$2:$F$31,$D$2:$D$31,0))","v":27},{"$f":"IF(ISBLANK(VLOOKUP($H28,$D$2:$E$31,2))=TRUE,\"\",VLOOKUP($H28,$D$2:$E$31,2))","v":" "},null,27,{"$f":"IF(ISBLANK(Categorieën!B67)=TRUE,\" \",Categorieën!B67)","v":" "},{"$f":"SUM(IF(ISBLANK(Categorieën!B67)=TRUE,100,IF(Categorieën!B67>Categorieën!$B$41:$B$70,1,0)))+ROW()/100","v":100.28},{"$f":"SMALL($M$2:$M$31,ROW()-1)","v":100.28},{"$f":"SUM(IF(N28=$M$2:$M$31,$K$2:$K$31,0))","v":27},{"$f":"IF(ISBLANK(VLOOKUP($O28,$K$2:$L$31,2))=TRUE,\"\",VLOOKUP($O28,$K$2:$L$31,2))","v":" "},null,27,{"$f":"IF(ISBLANK(Categorieën!B99)=TRUE,\" \",Categorieën!B99)","v":" "},{"$f":"SUM(IF(ISBLANK(Categorieën!B99)=TRUE,100,IF(Categorieën!B99>Categorieën!$B$73:$B$102,1,0)))+ROW()/100","v":100.28},{"$f":"SMALL($T$2:$T$31,ROW()-1)","v":100.28},{"$f":"SUM(IF(U28=$T$2:$T$31,$R$2:$R$31,0))","v":27},{"$f":"IF(ISBLANK(VLOOKUP($V28,$R$2:$S$31,2))=TRUE,\"\",VLOOKUP($V28,$R$2:$S$31,2))","v":" "},null,27,{"$f":"IF(ISBLANK(Categorieën!B131)=TRUE,\" \",Categorieën!B131)","v":" "},{"$f":"SUM(IF(ISBLANK(Categorieën!B131)=TRUE,100,IF(Categorieën!B131>Categorieën!$B$105:$B$134,1,0)))+ROW()/100","v":100.28},{"$f":"SMALL($AA$2:$AA$31,ROW()-1)","v":100.28},{"$f":"SUM(IF(AB28=$AA$2:$AA$31,$Y$2:$Y$31,0))","v":27},{"$f":"IF(ISBLANK(VLOOKUP($AC28,$Y$2:$Z$31,2))=TRUE,\"\",VLOOKUP($AC28,$Y$2:$Z$31,2))","v":" "},null,27,{"$f":"IF(ISBLANK(Categorieën!B163)=TRUE,\" \",Categorieën!B163)","v":" "},{"$f":"SUM(IF(ISBLANK(Categorieën!B163)=TRUE,100,IF(Categorieën!B163>Categorieën!$B$137:$B$166,1,0)))+ROW()/100","v":100.28},{"$f":"SMALL($AH$2:$AH$31,ROW()-1)","v":100.28},{"$f":"SUM(IF(AI28=$AH$2:$AH$31,$AF$2:$AF$31,0))","v":27},{"$f":"IF(ISBLANK(VLOOKUP($AJ28,$AF$2:$AG$31,2))=TRUE,\"\",VLOOKUP($AJ28,$AF$2:$AG$31,2))","v":" "},null,27,{"$f":"IF(ISBLANK(Categorieën!B195)=TRUE,\" \",Categorieën!B195)","v":" "},{"$f":"SUM(IF(ISBLANK(Categorieën!B195)=TRUE,100,IF(Categorieën!B195>Categorieën!$B$169:$B$198,1,0)))+ROW()/100","v":100.28},{"$f":"SMALL($AO$2:$AO$31,ROW()-1)","v":100.28},{"$f":"SUM(IF(AP28=$AO$2:$AO$31,$AM$2:$AM$31,0))","v":27},{"$f":"IF(ISBLANK(VLOOKUP($AQ28,$AM$2:$AN$31,2))=TRUE,\"\",VLOOKUP($AQ28,$AM$2:$AN$31,2))","v":" "}]
[null,null,null,28,{"$f":"IF(ISBLANK(Categorieën!B36)=TRUE,\" \",Categorieën!B36)","v":" "},{"$f":"SUM(IF(ISBLANK(Categorieën!B36)=TRUE,100,IF(Categorieën!B36>Categorieën!$B$9:$B$38,1,0)))+ROW()/100","v":100.29},{"$f":"SMALL($F$2:$F$31,ROW()-1)","v":100.29},{"$f":"SUM(IF(G29=$F$2:$F$31,$D$2:$D$31,0))","v":28},{"$f":"IF(ISBLANK(VLOOKUP($H29,$D$2:$E$31,2))=TRUE,\"\",VLOOKUP($H29,$D$2:$E$31,2))","v":" "},null,28,{"$f":"IF(ISBLANK(Categorieën!B68)=TRUE,\" \",Categorieën!B68)","v":" "},{"$f":"SUM(IF(ISBLANK(Categorieën!B68)=TRUE,100,IF(Categorieën!B68>Categorieën!$B$41:$B$70,1,0)))+ROW()/100","v":100.29},{"$f":"SMALL($M$2:$M$31,ROW()-1)","v":100.29},{"$f":"SUM(IF(N29=$M$2:$M$31,$K$2:$K$31,0))","v":28},{"$f":"IF(ISBLANK(VLOOKUP($O29,$K$2:$L$31,2))=TRUE,\"\",VLOOKUP($O29,$K$2:$L$31,2))","v":" "},null,28,{"$f":"IF(ISBLANK(Categorieën!B100)=TRUE,\" \",Categorieën!B100)","v":" "},{"$f":"SUM(IF(ISBLANK(Categorieën!B100)=TRUE,100,IF(Categorieën!B100>Categorieën!$B$73:$B$102,1,0)))+ROW()/100","v":100.29},{"$f":"SMALL($T$2:$T$31,ROW()-1)","v":100.29},{"$f":"SUM(IF(U29=$T$2:$T$31,$R$2:$R$31,0))","v":28},{"$f":"IF(ISBLANK(VLOOKUP($V29,$R$2:$S$31,2))=TRUE,\"\",VLOOKUP($V29,$R$2:$S$31,2))","v":" "},null,28,{"$f":"IF(ISBLANK(Categorieën!B132)=TRUE,\" \",Categorieën!B132)","v":" "},{"$f":"SUM(IF(ISBLANK(Categorieën!B132)=TRUE,100,IF(Categorieën!B132>Categorieën!$B$105:$B$134,1,0)))+ROW()/100","v":100.29},{"$f":"SMALL($AA$2:$AA$31,ROW()-1)","v":100.29},{"$f":"SUM(IF(AB29=$AA$2:$AA$31,$Y$2:$Y$31,0))","v":28},{"$f":"IF(ISBLANK(VLOOKUP($AC29,$Y$2:$Z$31,2))=TRUE,\"\",VLOOKUP($AC29,$Y$2:$Z$31,2))","v":" "},null,28,{"$f":"IF(ISBLANK(Categorieën!B164)=TRUE,\" \",Categorieën!B164)","v":" "},{"$f":"SUM(IF(ISBLANK(Categorieën!B164)=TRUE,100,IF(Categorieën!B164>Categorieën!$B$137:$B$166,1,0)))+ROW()/100","v":100.29},{"$f":"SMALL($AH$2:$AH$31,ROW()-1)","v":100.29},{"$f":"SUM(IF(AI29=$AH$2:$AH$31,$AF$2:$AF$31,0))","v":28},{"$f":"IF(ISBLANK(VLOOKUP($AJ29,$AF$2:$AG$31,2))=TRUE,\"\",VLOOKUP($AJ29,$AF$2:$AG$31,2))","v":" "},null,28,{"$f":"IF(ISBLANK(Categorieën!B196)=TRUE,\" \",Categorieën!B196)","v":" "},{"$f":"SUM(IF(ISBLANK(Categorieën!B196)=TRUE,100,IF(Categorieën!B196>Categorieën!$B$169:$B$198,1,0)))+ROW()/100","v":100.29},{"$f":"SMALL($AO$2:$AO$31,ROW()-1)","v":100.29},{"$f":"SUM(IF(AP29=$AO$2:$AO$31,$AM$2:$AM$31,0))","v":28},{"$f":"IF(ISBLANK(VLOOKUP($AQ29,$AM$2:$AN$31,2))=TRUE,\"\",VLOOKUP($AQ29,$AM$2:$AN$31,2))","v":" "}]
[null,null,null,29,{"$f":"IF(ISBLANK(Categorieën!B37)=TRUE,\" \",Categorieën!B37)","v":" "},{"$f":"SUM(IF(ISBLANK(Categorieën!B37)=TRUE,100,IF(Categorieën!B37>Categorieën!$B$9:$B$38,1,0)))+ROW()/100","v":100.3},{"$f":"SMALL($F$2:$F$31,ROW()-1)","v":100.3},{"$f":"SUM(IF(G30=$F$2:$F$31,$D$2:$D$31,0))","v":29},{"$f":"IF(ISBLANK(VLOOKUP($H30,$D$2:$E$31,2))=TRUE,\"\",VLOOKUP($H30,$D$2:$E$31,2))","v":" "},null,29,{"$f":"IF(ISBLANK(Categorieën!B69)=TRUE,\" \",Categorieën!B69)","v":" "},{"$f":"SUM(IF(ISBLANK(Categorieën!B69)=TRUE,100,IF(Categorieën!B69>Categorieën!$B$41:$B$70,1,0)))+ROW()/100","v":100.3},{"$f":"SMALL($M$2:$M$31,ROW()-1)","v":100.3},{"$f":"SUM(IF(N30=$M$2:$M$31,$K$2:$K$31,0))","v":29},{"$f":"IF(ISBLANK(VLOOKUP($O30,$K$2:$L$31,2))=TRUE,\"\",VLOOKUP($O30,$K$2:$L$31,2))","v":" "},null,29,{"$f":"IF(ISBLANK(Categorieën!B101)=TRUE,\" \",Categorieën!B101)","v":" "},{"$f":"SUM(IF(ISBLANK(Categorieën!B101)=TRUE,100,IF(Categorieën!B101>Categorieën!$B$73:$B$102,1,0)))+ROW()/100","v":100.3},{"$f":"SMALL($T$2:$T$31,ROW()-1)","v":100.3},{"$f":"SUM(IF(U30=$T$2:$T$31,$R$2:$R$31,0))","v":29},{"$f":"IF(ISBLANK(VLOOKUP($V30,$R$2:$S$31,2))=TRUE,\"\",VLOOKUP($V30,$R$2:$S$31,2))","v":" "},null,29,{"$f":"IF(ISBLANK(Categorieën!B133)=TRUE,\" \",Categorieën!B133)","v":" "},{"$f":"SUM(IF(ISBLANK(Categorieën!B133)=TRUE,100,IF(Categorieën!B133>Categorieën!$B$105:$B$134,1,0)))+ROW()/100","v":100.3},{"$f":"SMALL($AA$2:$AA$31,ROW()-1)","v":100.3},{"$f":"SUM(IF(AB30=$AA$2:$AA$31,$Y$2:$Y$31,0))","v":29},{"$f":"IF(ISBLANK(VLOOKUP($AC30,$Y$2:$Z$31,2))=TRUE,\"\",VLOOKUP($AC30,$Y$2:$Z$31,2))","v":" "},null,29,{"$f":"IF(ISBLANK(Categorieën!B165)=TRUE,\" \",Categorieën!B165)","v":" "},{"$f":"SUM(IF(ISBLANK(Categorieën!B165)=TRUE,100,IF(Categorieën!B165>Categorieën!$B$137:$B$166,1,0)))+ROW()/100","v":100.3},{"$f":"SMALL($AH$2:$AH$31,ROW()-1)","v":100.3},{"$f":"SUM(IF(AI30=$AH$2:$AH$31,$AF$2:$AF$31,0))","v":29},{"$f":"IF(ISBLANK(VLOOKUP($AJ30,$AF$2:$AG$31,2))=TRUE,\"\",VLOOKUP($AJ30,$AF$2:$AG$31,2))","v":" "},null,29,{"$f":"IF(ISBLANK(Categorieën!B197)=TRUE,\" \",Categorieën!B197)","v":" "},{"$f":"SUM(IF(ISBLANK(Categorieën!B197)=TRUE,100,IF(Categorieën!B197>Categorieën!$B$169:$B$198,1,0)))+ROW()/100","v":100.3},{"$f":"SMALL($AO$2:$AO$31,ROW()-1)","v":100.3},{"$f":"SUM(IF(AP30=$AO$2:$AO$31,$AM$2:$AM$31,0))","v":29},{"$f":"IF(ISBLANK(VLOOKUP($AQ30,$AM$2:$AN$31,2))=TRUE,\"\",VLOOKUP($AQ30,$AM$2:$AN$31,2))","v":" "}]
[null,null,null,30,{"$f":"IF(ISBLANK(Categorieën!B38)=TRUE,\" \",Categorieën!B38)","v":" "},{"$f":"SUM(IF(ISBLANK(Categorieën!B38)=TRUE,100,IF(Categorieën!B38>Categorieën!$B$9:$B$38,1,0)))+ROW()/100","v":100.31},{"$f":"SMALL($F$2:$F$31,ROW()-1)","v":100.31},{"$f":"SUM(IF(G31=$F$2:$F$31,$D$2:$D$31,0))","v":30},{"$f":"IF(ISBLANK(VLOOKUP($H31,$D$2:$E$31,2))=TRUE,\"\",VLOOKUP($H31,$D$2:$E$31,2))","v":" "},null,30,{"$f":"IF(ISBLANK(Categorieën!B70)=TRUE,\" \",Categorieën!B70)","v":" "},{"$f":"SUM(IF(ISBLANK(Categorieën!B70)=TRUE,100,IF(Categorieën!B70>Categorieën!$B$41:$B$70,1,0)))+ROW()/100","v":100.31},{"$f":"SMALL($M$2:$M$31,ROW()-1)","v":100.31},{"$f":"SUM(IF(N31=$M$2:$M$31,$K$2:$K$31,0))","v":30},{"$f":"IF(ISBLANK(VLOOKUP($O31,$K$2:$L$31,2))=TRUE,\"\",VLOOKUP($O31,$K$2:$L$31,2))","v":" "},null,30,{"$f":"IF(ISBLANK(Categorieën!B102)=TRUE,\" \",Categorieën!B102)","v":" "},{"$f":"SUM(IF(ISBLANK(Categorieën!B102)=TRUE,100,IF(Categorieën!B102>Categorieën!$B$73:$B$102,1,0)))+ROW()/100","v":100.31},{"$f":"SMALL($T$2:$T$31,ROW()-1)","v":100.31},{"$f":"SUM(IF(U31=$T$2:$T$31,$R$2:$R$31,0))","v":30},{"$f":"IF(ISBLANK(VLOOKUP($V31,$R$2:$S$31,2))=TRUE,\"\",VLOOKUP($V31,$R$2:$S$31,2))","v":" "},null,30,{"$f":"IF(ISBLANK(Categorieën!B134)=TRUE,\" \",Categorieën!B134)","v":" "},{"$f":"SUM(IF(ISBLANK(Categorieën!B134)=TRUE,100,IF(Categorieën!B134>Categorieën!$B$105:$B$134,1,0)))+ROW()/100","v":100.31},{"$f":"SMALL($AA$2:$AA$31,ROW()-1)","v":100.31},{"$f":"SUM(IF(AB31=$AA$2:$AA$31,$Y$2:$Y$31,0))","v":30},{"$f":"IF(ISBLANK(VLOOKUP($AC31,$Y$2:$Z$31,2))=TRUE,\"\",VLOOKUP($AC31,$Y$2:$Z$31,2))","v":" "},null,30,{"$f":"IF(ISBLANK(Categorieën!B166)=TRUE,\" \",Categorieën!B166)","v":" "},{"$f":"SUM(IF(ISBLANK(Categorieën!B166)=TRUE,100,IF(Categorieën!B166>Categorieën!$B$137:$B$166,1,0)))+ROW()/100","v":100.31},{"$f":"SMALL($AH$2:$AH$31,ROW()-1)","v":100.31},{"$f":"SUM(IF(AI31=$AH$2:$AH$31,$AF$2:$AF$31,0))","v":30},{"$f":"IF(ISBLANK(VLOOKUP($AJ31,$AF$2:$AG$31,2))=TRUE,\"\",VLOOKUP($AJ31,$AF$2:$AG$31,2))","v":" "},null,30,{"$f":"IF(ISBLANK(Categorieën!B198)=TRUE,\" \",Categorieën!B198)","v":" "},{"$f":"SUM(IF(ISBLANK(Categorieën!B198)=TRUE,100,IF(Categorieën!B198>Categorieën!$B$169:$B$198,1,0)))+ROW()/100","v":100.31},{"$f":"SMALL($AO$2:$AO$31,ROW()-1)","v":100.31},{"$f":"SUM(IF(AP31=$AO$2:$AO$31,$AM$2:$AM$31,0))","v":30},{"$f":"IF(ISBLANK(VLOOKUP($AQ31,$AM$2:$AN$31,2))=TRUE,\"\",VLOOKUP($AQ31,$AM$2:$AN$31,2))","v":" "}]